Workbook

Sheet Read me first
A1: Read me first
A2: 1. Equity returns assumed are historical sensex returns computed for each financial year
A3: 2. Debt returns are historcial FD returns from RBI website
A4: 3. The last few debt returns (in red) have been added by hand as I could not get hold of actual data
A5: 4. Rebalancing a porfolio may involve transaction costs especially in SIP mode if the holding period of equity is less than an year
A6: 5. Debt instruments are taxable* so the final corpus will be lower in both cases and this tax may impact the benefit of rebalancing
A7: 6. The rebalancing shown here is done during the growth phase of the portfolio when the goal if far away
A8: 7. Close to goal (2-3 year) the equity component will be gradually or abruptly decreased and pushed to debt
A9: 8. The above step does not constitute rebalancing is the sense that it is usually used
A10: 9. The tool is only an indicator you would need to make a suitable choice depending on your personal situation.
A11: * If the direct tax code comes to effect long term equity investments will also become taxable

Sheet Rebalancing Illustration
A1: This is an illustration of portfolio rebalancing as found at
A2: http://www.jagoinvestor.com/2008/07/portfolio-rebalancing-today-i-am-going.html
A3: An investment of 1 lakhs is considered. Of this 30% is invested in equity and 70% in debt instruments | L3: Asset Allocation
A4: No Rebalancing. No futher changes are then made. The money is allowed to grow. | L4: Before investment | N4: After Investment.
A5: Year | B5: Sensex | C5: investment | D5: Total Equity | F5: FD | G5: investment | H5: Total FD | I5: Total Corpus | J5: Equity | K5: Debt | L5: Equity | M5: Debt | N5: Equity | O5: Debt
B6: return | F6: return
A7: 1 | B7: 0.3 | C7: 30000 | D7: =IF(A7=0,0,(C7+D6)*(1+B7)) -> 39000 | F7: 0.09 | G7: 70000 | H7: =IF(A7=0,0,(G7+H6)*(1+F7)) -> 76300 | I7: =D7+H7 -> 115300 | J7: =IF(A7=0,0,D7/(D7+H7)) -> 0.3382480486 | K7: =IF(A7=0,0,H7/(D7+H7)) -> 0.6617519514 | L7: =C7/(C7+G7) -> 0.3 | M7: =G7/(C7+G7) -> 0.7 | N7: =D7/I7 -> 0.3382480486 | O7: =H7/I7 -> 0.6617519514
A8: 2 | B8: -0.35 | C8: =IF(A8=0,0,(D7)) -> 39000 | D8: =IF(A8=0,0,(C8)*(1+B8)) -> 25350 | F8: 0.09 | G8: =IF(A8=0,0,(H7) ) -> 76300 | H8: =IF(A8=0,0,(G8)*(1+F8)) -> 83167 | I8: =D8+H8 -> 108517 | J8: =IF(A8=0,0,D8/(D8+H8)) -> 0.2336039515 | K8: =IF(A8=0,0,H8/(D8+H8)) -> 0.7663960485 | L8: =C8/(C8+G8) -> 0.3382480486 | M8: =G8/(C8+G8) -> 0.6617519514 | N8: =D8/I8 -> 0.2336039515 | O8: =H8/I8 -> 0.7663960485
A9: 3 | B9: 0.4 | C9: =IF(A9=0,0,(D8)) -> 25350 | D9: =IF(A9=0,0,(C9)*(1+B9)) -> 35490 | F9: 0.09 | G9: =IF(A9=0,0,(H8) ) -> 83167 | H9: =IF(A9=0,0,(G9)*(1+F9)) -> 90652.03 | I9: =D9+H9 -> 126142.03 | J9: =IF(A9=0,0,D9/(D9+H9)) -> 0.2813495232 | K9: =IF(A9=0,0,H9/(D9+H9)) -> 0.7186504768 | L9: 0.2336039515 | M9: 0.7663960485 | N9: 0.2813495232 | O9: 0.7186504768
A10: 4 | B10: 0.6 | C10: 35490 | D10: 56784 | F10: 0.09 | G10: =IF(A10=0,0,(H9) ) -> 90652.03 | H10: =IF(A10=0,0,(G10)*(1+F10)) -> 98810.7127 | I10: =D10+H10 -> 155594.7127 | J10: =IF(A10=0,0,D10/(D10+H10)) -> 0.3649481336 | K10: =IF(A10=0,0,H10/(D10+H10)) -> 0.6350518664 | L10: 0.2813495232 | M10: 0.7186504768 | N10: 0.3649481336 | O10: 0.6350518664
A11: 5 | B11: -0.3 | C11: 56784 | D11: 39748.8 | F11: 0.09 | G11: =IF(A11=0,0,(H10) ) -> 98810.7127 | H11: =IF(A11=0,0,(G11)*(1+F11)) -> 107703.6768 | I11: =D11+H11 -> 147452.4768 | J11: =IF(A11=0,0,D11/(D11+H11)) -> 0.2695702429 | K11: =IF(A11=0,0,H11/(D11+H11)) -> 0.7304297571 | L11: 0.3649481336 | M11: 0.6350518664 | N11: 0.2695702429 | O11: 0.7304297571
L12: Asset Allocation
A13: Rebalancing with 30% equity and 70% debt | L13: Before investment | N13: After Investment.
A14: Each year 30% of total corpus earned is invested in equity and 70% in debt irrespective of returns earned the previous year | L14: Equity | M14: Debt | N14: Equity | O14: Debt
A15: Year | B15: Sensex | C15: Investment | D15: Total Equity | F15: FD | G15: Investment | H15: Total | I15: Total Corpus | J15: Equity | K15: Debt
B16: return | F16: return
A17: 1 | B17: 0.3 | C17: 30000 | D17: =IF(A17=0,0,(C17)*(1+B17)) -> 39000 | F17: 0.09 | G17: 70000 | H17: =IF(A17=0,0,(G17)*(1+F17)) -> 76300 | I17: =D17+H17 -> 115300 | J17: =IF(A17=0,0,D17/(D17+H17)) -> 0.3382480486 | K17: =IF(A17=0,0,H17/(D17+H17)) -> 0.6617519514 | L17: =C17/(C17+G17) -> 0.3 | M17: =G17/(C17+G17) -> 0.7 | N17: =D17/I17 -> 0.3382480486 | O17: =H17/I17 -> 0.6617519514
A18: 2 | B18: -0.35 | C18: =IF(A18=0,0,(30%*(D17+H17))) -> 34590 | D18: =IF(A18=0,0,(C18)*(1+B18)) -> 22483.5 | F18: 0.09 | G18: =IF(A18=0,0,(70%*(H17+D17))) -> 80710 | H18: =IF(A18=0,0,(G18)*(1+F18)) -> 87973.9 | I18: =D18+H18 -> 110457.4 | J18: =IF(A18=0,0,D18/(D18+H18)) -> 0.2035490605 | K18: =IF(A18=0,0,H18/(D18+H18)) -> 0.7964509395 | L18: =C18/(C18+G18) -> 0.3 | M18: =G18/(C18+G18) -> 0.7 | N18: =D18/I18 -> 0.2035490605 | O18: =H18/I18 -> 0.7964509395
A19: 3 | B19: 0.4 | C19: =IF(A19=0,0,(30%*(D18+H18))) -> 33137.22 | D19: =IF(A19=0,0,(C19)*(1+B19)) -> 46392.108 | F19: 0.09 | G19: =IF(A19=0,0,(70%*(H18+D18))) -> 77320.18 | H19: =IF(A19=0,0,(G19)*(1+F19)) -> 84278.9962 | I19: =D19+H19 -> 130671.1042 | J19: =IF(A19=0,0,D19/(D19+H19)) -> 0.3550295858 | K19: =IF(A19=0,0,H19/(D19+H19)) -> 0.6449704142 | L19: =C19/(C19+G19) -> 0.3 | M19: =G19/(C19+G19) -> 0.7 | N19: 0.3550295858 | O19: =H19/I19 -> 0.6449704142
A20: 4 | B20: 0.6 | C20: =IF(A20=0,0,(30%*(D19+H19))) -> 39201.33126 | D20: =IF(A20=0,0,(C20)*(1+B20)) -> 62722.13002 | F20: 0.09 | G20: =IF(A20=0,0,(70%*(H19+D19))) -> 91469.77294 | H20: =IF(A20=0,0,(G20)*(1+F20)) -> 99702.0525 | I20: =D20+H20 -> 162424.1825 | J20: =IF(A20=0,0,D20/(D20+H20)) -> 0.3861625101 | K20: =IF(A20=0,0,H20/(D20+H20)) -> 0.6138374899 | L20: =C20/(C20+G20) -> 0.3 | M20: =G20/(C20+G20) -> 0.7 | N20: 0.3861625101 | O20: =H20/I20 -> 0.6138374899
A21: 5 | B21: -0.3 | C21: =IF(A21=0,0,(30%*(D20+H20))) -> 48727.25476 | D21: =IF(A21=0,0,(C21)*(1+B21)) -> 34109.07833 | F21: 0.09 | G21: =IF(A21=0,0,(70%*(H20+D20))) -> 113696.9278 | H21: =IF(A21=0,0,(G21)*(1+F21)) -> 123929.6513 | I21: =D21+H21 -> 158038.7296 | J21: =IF(A21=0,0,D21/(D21+H21)) -> 0.2158273381 | K21: =IF(A21=0,0,H21/(D21+H21)) -> 0.7841726619 | L21: =C21/(C21+G21) -> 0.3 | M21: =G21/(C21+G21) -> 0.7 | N21: 0.2158273381 | O21: =H21/I21 -> 0.7841726619
A23: In this case the rebalanced porfolio has done better.
A24: Is rebalancing crucial? It can be most times. The most important thing is what is your expected corpus for a goal. If this amount
A25: is lower then the corpus achieved with no rebalancing than your goal can be achieved.
A26: However there is no way of knowing this. Have a look at the sample data. It seems advantageous more often to rebalance
A27: In this example the rebalanced portfolio is 7% higher. A difference of greater than 5% can be taken as significant.

Sheet Annual Rebalancing Lumpsum
A1: Enter data only in green cells | N1: No Rebalancing | AA1: Annual Rebalancing
A2: Enter no of years (max 32) | D2: 25 | J2: Annual CAGR | N2: Year of | O2: Year | P2: Sensex | Q2: investment | R2: Total Corpus | T2: FD | U2: Monthly | V2: Total | X2: Asset Allocation | AA2: Year of | AB2: Year | AC2: Sensex | AD2: Investment | AE2: Total | AG2: FD | AH2: Monthly | AI2: Total | AK2: Asset Allocation
A3: Choose a starting year between | D3: 1980 | E3: and | F3: =2011-time1+1 -> 1987 | J3: No | K3: With | N3: return | P3: return | T3: return | X3: After Investment | AA3: return | AC3: return | AG3: return | AK3: After investment
A4: Starting year | C4: 1987 | J4: Rebalancing | K4: Rebalancing | X4: Equity | Y4: Debt | AK4: Equity | AL4: Debt
J5: =IF(O5=0,"",((R5+V5)/cont1)^(1/O5)-1) ->  | K5: =IF(O5=0,"",((AE5+AI5)/cont1)^(1/O5)-1) ->  | N5: 1980 | O5: =IF(T3=start-1+time1,0,IF(O3<>0,O3+1,IF(N5=start,1,0))) -> 0 | P5: 0.3489927666 | Q5: =IF(T3=start-1+time1,0,IF(N5=start,cont1*eqper,0)) -> 0 | R5: =IF(O5=0,0,(Q5+R3)*(1+P5)) -> 0 | S5: =IF(O5=time1,R5,0) -> 0 | T5: 0.075 | U5: =IF(T3=start-1+time1,0,IF(N5=start,cont1*bondper,0)) -> 0 | V5: =IF(O5=0,0,(U5+V3)*(1+T5)) -> 0 | W5: =IF(O5=time1,V5,0) -> 0 | X5: =IF(O5=0,0,R5/(R5+V5)) -> 0 | Y5: =IF(O5=0,0,V5/(R5+V5)) -> 0 | AA5: 1980 | AB5: =IF(AG3=start-1+time1,0,IF(AB3<>0,AB3+1,IF(AA5=start,1,0))) -> 0 | AC5: 0.3489927666 | AD5: =IF(AG3=start-1+time1,0,IF(AA5=start,cont1*eqper,0)) -> 0 | AE5: =IF(AB5=0,0,(AD5+eqper*(AE3+AI3))*(1+AC5)) -> 0 | AF5: =IF(AB5=time1,AE5,0) -> 0 | AG5: 0.075 | AH5: =IF(AG3=start-1+time1,0,IF(AA5=start,cont1*bondper,0)) -> 0 | AI5: =IF(AB5=0,0,(AH5+bondper*(AE3+AI3))*(1+AG5)) -> 0 | AJ5: =IF(AB5=time1,AI5,0) -> 0 | AK5: =IF(AB5=0,0,AE5/(AE5+AI5)) -> 0 | AL5: =IF(AB5=0,0,AI5/(AE5+AI5)) -> 0
A6: Lumpsum investment | D6: 100 | J6: =IF(O6=0,"",((R6+V6)/cont1)^(1/O6)-1) ->  | K6: =IF(O6=0,"",((AE6+AI6)/cont1)^(1/O6)-1) ->  | N6: =N5+1 -> 1981 | O6: =IF(N5=start-1+time1,0,IF(O5<>0,O5+1,IF(N6=start,1,0))) -> 0 | P6: 0.2552467712 | Q6: =IF(T5=start-1+time1,0,IF(N6=start,cont1*eqper,0)) -> 0 | R6: =IF(O6=0,0,(Q6+R5)*(1+P6)) -> 0 | S6: 0 | T6: 0.08 | U6: =IF(T5=start-1+time1,0,IF(N6=start,cont1*bondper,0)) -> 0 | V6: =IF(O6=0,0,(U6+V5)*(1+T6)) -> 0 | W6: 0 | X6: 0 | Y6: 0 | AA6: =AA5+1 -> 1981 | AB6: =IF(AA5=start-1+time1,0,IF(AB5<>0,AB5+1,IF(AA6=start,1,0))) -> 0 | AC6: 0.2552467712 | AD6: =IF(AG5=start-1+time1,0,IF(AA6=start,cont1*eqper,0)) -> 0 | AE6: =IF(AB6=0,0,(AD6+eqper*(AE5+AI5))*(1+AC6)) -> 0 | AF6: 0 | AG6: 0.08 | AH6: =IF(AG5=start-1+time1,0,IF(AA6=start,cont1*bondper,0)) -> 0 | AI6: =IF(AB6=0,0,(AH6+bondper*(AE5+AI5))*(1+AG6)) -> 0 | AJ6: 0 | AK6: 0 | AL6: 0
J7: =IF(O7=0,"",((R7+V7)/cont1)^(1/O7)-1) ->  | K7: =IF(O7=0,"",((AE7+AI7)/cont1)^(1/O7)-1) ->  | N7: =N6+1 -> 1982 | O7: 0 | P7: -0.02847825088 | Q7: 0 | R7: 0 | S7: 0 | T7: 0.08 | U7: 0 | V7: 0 | W7: 0 | X7: 0 | Y7: 0 | AA7: =AA6+1 -> 1982 | AB7: 0 | AC7: -0.02847825088 | AD7: 0 | AE7: 0 | AF7: 0 | AG7: 0.08 | AH7: 0 | AI7: 0 | AJ7: 0 | AK7: 0 | AL7: 0
J8: =IF(O8=0,"",((R8+V8)/cont1)^(1/O8)-1) ->  | K8: =IF(O8=0,"",((AE8+AI8)/cont1)^(1/O8)-1) ->  | N8: 1983 | O8: 0 | P8: 0.1598978772 | Q8: 0 | R8: 0 | S8: 0 | T8: 0.08 | U8: 0 | V8: 0 | W8: 0 | X8: 0 | Y8: 0 | AA8: 1983 | AB8: 0 | AC8: 0.1598978772 | AD8: 0 | AE8: 0 | AF8: 0 | AG8: 0.08 | AH8: 0 | AI8: 0 | AJ8: 0 | AK8: 0 | AL8: 0
A9: % in equities | B9: 0.7 | C9: % in FDs | D9: =100%-eqper -> 0.3 | J9: =IF(O9=0,"",((R9+V9)/cont1)^(1/O9)-1) ->  | K9: =IF(O9=0,"",((AE9+AI9)/cont1)^(1/O9)-1) ->  | N9: 1984 | O9: 0 | P9: 0.442383728 | Q9: 0 | R9: 0 | S9: 0 | T9: 0.08 | U9: 0 | V9: 0 | W9: 0 | X9: 0 | Y9: 0 | AA9: 1984 | AB9: 0 | AC9: 0.442383728 | AD9: 0 | AE9: 0 | AF9: 0 | AG9: 0.08 | AH9: 0 | AI9: 0 | AJ9: 0 | AK9: 0 | AL9: 0
J10: =IF(O10=0,"",((R10+V10)/cont1)^(1/O10)-1) ->  | K10: =IF(O10=0,"",((AE10+AI10)/cont1)^(1/O10)-1) ->  | N10: 1985 | O10: 0 | P10: 0.6224212966 | Q10: 0 | R10: 0 | S10: 0 | T10: 0.085 | U10: 0 | V10: 0 | W10: 0 | X10: 0 | Y10: 0 | AA10: 1985 | AB10: 0 | AC10: 0.6224212966 | AD10: 0 | AE10: 0 | AF10: 0 | AG10: 0.085 | AH10: 0 | AI10: 0 | AJ10: 0 | AK10: 0 | AL10: 0
A11: Total must be 100% | J11: =IF(O11=0,"",((R11+V11)/cont1)^(1/O11)-1) ->  | K11: =IF(O11=0,"",((AE11+AI11)/cont1)^(1/O11)-1) ->  | N11: 1986 | O11: 0 | P11: -0.1110414381 | Q11: 0 | R11: 0 | S11: 0 | T11: 0.085 | U11: 0 | V11: 0 | W11: 0 | X11: 0 | Y11: 0 | AA11: 1986 | AB11: 0 | AC11: -0.1110414381 | AD11: 0 | AE11: 0 | AF11: 0 | AG11: 0.085 | AH11: 0 | AI11: 0 | AJ11: 0 | AK11: 0 | AL11: 0
J12: =IF(O12=0,"",((R12+V12)/cont1)^(1/O12)-1) -> -0.1266033388 | K12: =IF(O12=0,"",((AE12+AI12)/cont1)^(1/O12)-1) -> -0.1266033388 | N12: 1987 | O12: 1 | P12: -0.2194333412 | Q12: 70 | R12: 54.63966612 | S12: 0 | T12: 0.09 | U12: 30 | V12: 32.7 | W12: 0 | X12: 0.6255996679 | Y12: 0.3744003321 | AA12: 1987 | AB12: 1 | AC12: -0.2194333412 | AD12: 70 | AE12: 54.63966612 | AF12: 0 | AG12: 0.09 | AH12: 30 | AI12: 32.7 | AJ12: 0 | AK12: 0.6255996679 | AL12: 0.3744003321
B13: Equity corpus | C13: Debt Corpus | D13: Total corpus | E13: % Equity | F13: %Debt | G13: CAGR | J13: =IF(O13=0,"",((R13+V13)/cont1)^(1/O13)-1) -> 0.1555042583 | K13: =IF(O13=0,"",((AE13+AI13)/cont1)^(1/O13)-1) -> 0.1750579721 | N13: 1988 | O13: 2 | P13: 0.7912995456 | Q13: 0 | R13: 97.87600909 | S13: 0 | T13: 0.09 | U13: 0 | V13: 35.643 | W13: 0 | X13: 0.7330492471 | Y13: 0.2669507529 | AA13: 1988 | AB13: 2 | AC13: 0.7912995456 | AD13: 0 | AE13: 109.516053 | AF13: 0 | AG13: 0.09 | AH13: 0 | AI13: 28.56007082 | AJ13: 0 | AK13: 0.7931570641 | AL13: 0.2068429359
A14: no rebalancing | B14: =MAX(S2:S57) -> 2387.126734 | C14: =MAX(W2:W57) -> 247.3939992 | D14: =B14+C14 -> 2634.520733 | E14: =B14/D14 -> 0.9060952544 | F14: =C14/D14 -> 0.09390474559 | G14: =(D14/cont1)^(1/time1)-1 -> 0.1397984573 | J14: =IF(O14=0,"",((R14+V14)/cont1)^(1/O14)-1) -> 0.1343907069 | K14: =IF(O14=0,"",((AE14+AI14)/cont1)^(1/O14)-1) -> 0.1471002414 | N14: 1989 | O14: 3 | P14: 0.09452073991 | Q14: 0 | R14: 107.1273219 | S14: 0 | T14: 0.09 | U14: 0 | V14: 38.85087 | W14: 0 | X14: 0.733858397 | Y14: 0.266141603 | AA14: 1989 | AB14: 3 | AC14: 0.09452073991 | AD14: 0 | AE14: 105.7890268 | AF14: 0 | AG14: 0.09 | AH14: 0 | AI14: 45.15089248 | AJ14: 0 | AK14: 0.7008684469 | AL14: 0.2991315531
A15: annual rebalancing | B15: =MAX(AF3:AF58) -> 2185.81603 | C15: =MAX(AJ3:AJ58) -> 1161.752678 | D15: =B15+C15 -> 3347.568708 | E15: =B15/D15 -> 0.6529562858 | F15: =C15/D15 -> 0.3470437142 | G15: =(D15/cont1)^(1/time1)-1 -> 0.1507717183 | J15: =IF(O15=0,"",((R15+V15)/cont1)^(1/O15)-1) -> 0.1929708527 | K15: =IF(O15=0,"",((AE15+AI15)/cont1)^(1/O15)-1) -> 0.1999950752 | N15: 1990 | O15: 4 | P15: 0.4953844184 | Q15: 0 | R15: 160.1965279 | S15: 0 | T15: 0.09 | U15: 0 | V15: 42.3474483 | W15: 0 | X15: 0.7909222032 | Y15: 0.2090777968 | AA15: 1990 | AB15: 4 | AC15: 0.4953844184 | AD15: 0 | AE15: 157.9992424 | AF15: 0 | AG15: 0.09 | AH15: 0 | AI15: 49.35735361 | AJ15: 0 | AK15: 0.7619687314 | AL15: 0.2380312686
A16: The % equity and debt shown here represents the final asset allocation | J16: =IF(O16=0,"",((R16+V16)/cont1)^(1/O16)-1) -> 0.4473563481 | K16: =IF(O16=0,"",((AE16+AI16)/cont1)^(1/O16)-1) -> 0.4320125115 | N16: 1991 | O16: 5 | P16: 2.668758615 | Q16: 0 | R16: 587.722392 | S16: 0 | T16: 0.12 | U16: 0 | V16: 47.4291421 | W16: 0 | X16: 0.9253262575 | Y16: 0.07467374248 | AA16: 1991 | AB16: 5 | AC16: 2.668758615 | AD16: 0 | AE16: 532.5189087 | AF16: 0 | AG16: 0.12 | AH16: 0 | AI16: 69.67181626 | AJ16: 0 | AK16: 0.884302741 | AL16: 0.115697259
A17: % difference bet the two corpuses | C17: =(D15-D14)/D14 -> 0.2706556703 | J17: =IF(O17=0,"",((R17+V17)/cont1)^(1/O17)-1) -> 0.2410872229 | K17: =IF(O17=0,"",((AE17+AI17)/cont1)^(1/O17)-1) -> 0.2726529967 | N17: 1992 | O17: 6 | P17: -0.467789965 | Q17: 0 | R17: 312.7917548 | S17: 0 | T17: 0.11 | U17: 0 | V17: 52.64634773 | W17: 0 | X17: 0.8559363478 | Y17: 0.1440636522 | AA17: 1992 | AB17: 6 | AC17: -0.467789965 | AD17: 0 | AE17: 224.3443627 | AF17: 0 | AG17: 0.11 | AH17: 0 | AI17: 200.5295114 | AJ17: 0 | AK17: 0.5280257893 | AL17: 0.4719742107
A18: +ve means rebalanced portfolio is higher | J18: =IF(O18=0,"",((R18+V18)/cont1)^(1/O18)-1) -> 0.2842706379 | K18: =IF(O18=0,"",((AE18+AI18)/cont1)^(1/O18)-1) -> 0.3016382903 | N18: 1993 | O18: 7 | P18: 0.6570738253 | Q18: 0 | R18: 518.3190297 | S18: 0 | T18: 0.1 | U18: 0 | V18: 57.9109825 | W18: 0 | X18: 0.8995002321 | Y18: 0.1004997679 | AA18: 1993 | AB18: 7 | AC18: 0.6570738253 | AD18: 0 | AE18: 492.8331631 | AF18: 0 | AG18: 0.1 | AH18: 0 | AI18: 140.2083785 | AJ18: 0 | AK18: 0.778516307 | AL18: 0.221483693
A19: Click on the macro to find out the % difference | J19: =IF(O19=0,"",((R19+V19)/cont1)^(1/O19)-1) -> 0.2263397965 | K19: =IF(O19=0,"",((AE19+AI19)/cont1)^(1/O19)-1) -> 0.249248853 | N19: 1994 | O19: 8 | P19: -0.1370816012 | Q19: 0 | R19: 447.2670272 | S19: 0 | T19: 0.11 | U19: 0 | V19: 64.28119057 | W19: 0 | X19: 0.8743399188 | Y19: 0.1256600812 | AA19: 1994 | AB19: 8 | AC19: -0.1370816012 | AD19: 0 | AE19: 382.3842354 | AF19: 0 | AG19: 0.11 | AH19: 0 | AI19: 210.8028333 | AJ19: 0 | AK19: 0.6446267216 | AL19: 0.3553732784
A20: between the two corpuses for all possible | J20: =IF(O20=0,"",((R20+V20)/cont1)^(1/O20)-1) -> 0.2045243007 | K20: =IF(O20=0,"",((AE20+AI20)/cont1)^(1/O20)-1) -> 0.2264836709 | N20: 1995 | O20: 9 | P20: 0.03239843482 | Q20: 0 | R20: 461.7577788 | S20: 0 | T20: 0.12 | U20: 0 | V20: 71.99493344 | W20: 0 | X20: 0.8651155642 | Y20: 0.1348844358 | AA20: 1995 | AB20: 9 | AC20: 0.03239843482 | AD20: 0 | AE20: 428.6837809 | AF20: 0 | AG20: 0.12 | AH20: 0 | AI20: 199.3108551 | AJ20: 0 | AK20: 0.6826233161 | AL20: 0.3173766839
A21: investment durations between | J21: =IF(O21=0,"",((R21+V21)/cont1)^(1/O21)-1) -> 0.1840457186 | K21: =IF(O21=0,"",((AE21+AI21)/cont1)^(1/O21)-1) -> 0.2058177801 | N21: 1996 | O21: 10 | P21: -0.001699038499 | Q21: 0 | R21: 460.9732346 | S21: 0 | T21: 0.12 | U21: 0 | V21: 80.63432546 | W21: 0 | X21: 0.8511203842 | Y21: 0.1488796158 | AA21: 1996 | AB21: 10 | AC21: -0.001699038499 | AD21: 0 | AE21: 438.8493543 | AF21: 0 | AG21: 0.12 | AH21: 0 | AI21: 211.0061977 | AJ21: 0 | AK21: 0.6753029238 | AL21: 0.3246970762
A22: =D3 -> 1980 | B22: and | C22: =F3 -> 1987 | J22: =IF(O22=0,"",((R22+V22)/cont1)^(1/O22)-1) -> 0.1810089493 | K22: =IF(O22=0,"",((AE22+AI22)/cont1)^(1/O22)-1) -> 0.2000411107 | N22: 1997 | O22: 11 | P22: 0.1582497493 | Q22: 0 | R22: 533.9221334 | S22: 0 | T22: 0.11 | U22: 0 | V22: 89.50410126 | W22: 0 | X22: 0.8564319301 | Y22: 0.1435680699 | AA22: 1997 | AB22: 11 | AC22: 0.1582497493 | AD22: 0 | AE22: 526.8865211 | AF22: 0 | AG22: 0.11 | AH22: 0 | AI22: 216.4018988 | AJ22: 0 | AK22: 0.7088587781 | AL22: 0.2911412219
A23: Average % difference bet the two corpuses | D23: =AVERAGE(B26:B48) -> 0.1466442889 | J23: =IF(O23=0,"",((R23+V23)/cont1)^(1/O23)-1) -> 0.1629332794 | K23: =IF(O23=0,"",((AE23+AI23)/cont1)^(1/O23)-1) -> 0.1823384884 | N23: 1998 | O23: 12 | P23: -0.03924988761 | Q23: 0 | R23: 512.9657497 | S23: 0 | T23: 0.105 | U23: 0 | V23: 98.90203189 | W23: 0 | X23: 0.8383604516 | Y23: 0.1616395484 | AA23: 1998 | AB23: 12 | AC23: -0.03924988761 | AD23: 0 | AE23: 499.8801031 | AF23: 0 | AG23: 0.105 | AH23: 0 | AI23: 246.4001112 | AJ23: 0 | AK23: 0.6698289644 | AL23: 0.3301710356
J24: =IF(O24=0,"",((R24+V24)/cont1)^(1/O24)-1) -> 0.1726986646 | K24: =IF(O24=0,"",((AE24+AI24)/cont1)^(1/O24)-1) -> 0.1882530506 | N24: 1999 | O24: 13 | P24: 0.3372549439 | Q24: 0 | R24: 685.9659848 | S24: 0 | T24: 0.085 | U24: 0 | V24: 107.3087046 | W24: 0 | X24: 0.8647269275 | Y24: 0.1352730725 | AA24: 1999 | AB24: 13 | AC24: 0.3372549439 | AD24: 0 | AE24: 698.5768343 | AF24: 0 | AG24: 0.085 | AH24: 0 | AI24: 242.9142098 | AJ24: 0 | AK24: 0.741989888 | AL24: 0.258010112
A25: Year | B25: % difference | J25: =IF(O25=0,"",((R25+V25)/cont1)^(1/O25)-1) -> 0.1379826344 | K25: =IF(O25=0,"",((AE25+AI25)/cont1)^(1/O25)-1) -> 0.1581840166 | N25: 2000 | O25: 14 | P25: -0.279308497 | Q25: 0 | R25: 494.3698566 | S25: 0 | T25: 0.085 | U25: 0 | V25: 116.4299445 | W25: 0 | X25: 0.8093811683 | Y25: 0.1906188317 | AA25: 2000 | AB25: 14 | AC25: -0.279308497 | AD25: 0 | AE25: 474.9672169 | AF25: 0 | AG25: 0.085 | AH25: 0 | AI25: 306.4553348 | AJ25: 0 | AK25: 0.6078237899 | AL25: 0.3921762101
A26: 1980 | B26: 0.1043395077 | J26: =IF(O26=0,"",((R26+V26)/cont1)^(1/O26)-1) -> 0.1270041705 | K26: =IF(O26=0,"",((AE26+AI26)/cont1)^(1/O26)-1) -> 0.1466152389 | N26: 2001 | O26: 15 | P26: -0.03746275365 | Q26: 0 | R26: 475.8494004 | S26: 0 | T26: 0.075 | U26: 0 | V26: 125.1621903 | W26: 0 | X26: 0.79174746 | Y26: 0.20825254 | AA26: 2001 | AB26: 15 | AC26: -0.03746275365 | AD26: 0 | AE26: 526.5038178 | AF26: 0 | AG26: 0.075 | AH26: 0 | AI26: 252.0087729 | AJ26: 0 | AK26: 0.6762945443 | AL26: 0.3237054557
A27: 1981 | B27: 0.05452704113 | J27: =IF(O27=0,"",((R27+V27)/cont1)^(1/O27)-1) -> 0.1122575864 | K27: =IF(O27=0,"",((AE27+AI27)/cont1)^(1/O27)-1) -> 0.1315463914 | N27: 2002 | O27: 16 | P27: -0.1212417312 | Q27: 0 | R27: 418.1565953 | S27: 0 | T27: 0.0425 | U27: 0 | V27: 130.4815834 | W27: 0 | X27: 0.7621718858 | Y27: 0.2378281142 | AA27: 2002 | AB27: 16 | AC27: -0.1212417312 | AD27: 0 | AE27: 478.8870636 | AF27: 0 | AG27: 0.0425 | AH27: 0 | AI27: 243.4798128 | AJ27: 0 | AK27: 0.6629416149 | AL27: 0.3370583851
A28: 1982 | B28: 0.06961731038 | J28: =IF(O28=0,"",((R28+V28)/cont1)^(1/O28)-1) -> 0.1381583463 | K28: =IF(O28=0,"",((AE28+AI28)/cont1)^(1/O28)-1) -> 0.1546551834 | N28: 2003 | O28: 17 | P28: 0.8337531817 | Q28: 0 | R28: 766.7959871 | S28: 0 | T28: 0.04 | U28: 0 | V28: 135.7008468 | W28: 0 | X28: 0.8496384235 | Y28: 0.1503615765 | AA28: 2003 | AB28: 17 | AC28: 0.8337531817 | AD28: 0 | AE28: 927.2497905 | AF28: 0 | AG28: 0.04 | AH28: 0 | AI28: 225.3784654 | AJ28: 0 | AK28: 0.8044656078 | AL28: 0.1955343922
A29: 1983 | B29: 0.01270461196 | J29: =IF(O29=0,"",((R29+V29)/cont1)^(1/O29)-1) -> 0.1385379155 | K29: =IF(O29=0,"",((AE29+AI29)/cont1)^(1/O29)-1) -> 0.1531986677 | N29: 2004 | O29: 18 | P29: 0.1613816048 | Q29: 0 | R29: 890.5427541 | S29: 0 | T29: 0.0525 | U29: 0 | V29: 142.8251412 | W29: 0 | X29: 0.8617867442 | Y29: 0.1382132558 | AA29: 2004 | AB29: 18 | AC29: 0.1613816048 | AD29: 0 | AE29: 937.0488775 | AF29: 0 | AG29: 0.0525 | AH29: 0 | AI29: 363.9423718 | AJ29: 0 | AK29: 0.7202576328 | AL29: 0.2797423672
A30: 1984 | B30: 0.2175477159 | J30: =IF(O30=0,"",((R30+V30)/cont1)^(1/O30)-1) -> 0.160755637 | K30: =IF(O30=0,"",((AE30+AI30)/cont1)^(1/O30)-1) -> 0.170652452 | N30: 2005 | O30: 19 | P30: 0.7373036677 | Q30: 0 | R30: 1547.143193 | S30: 0 | T30: 0.06 | U30: 0 | V30: 151.3946497 | W30: 0 | X30: 0.9108676617 | Y30: 0.08913233834 | AA30: 2005 | AB30: 19 | AC30: 0.7373036677 | AD30: 0 | AE30: 1582.151808 | AF30: 0 | AG30: 0.06 | AH30: 0 | AI30: 413.7152173 | AJ30: 0 | AK30: 0.7927140376 | AL30: 0.2072859624
A31: 1985 | B31: 0.1782052176 | J31: =IF(O31=0,"",((R31+V31)/cont1)^(1/O31)-1) -> 0.1602298015 | K31: =IF(O31=0,"",((AE31+AI31)/cont1)^(1/O31)-1) -> 0.1685835534 | N31: 2006 | O31: 20 | P31: 0.1588741135 | Q31: 0 | R31: 1792.944196 | S31: 0 | T31: 0.0625 | U31: 0 | V31: 160.8568153 | W31: 0 | X31: 0.9176698065 | Y31: 0.08233019347 | AA31: 2006 | AB31: 20 | AC31: 0.1588741135 | AD31: 0 | AE31: 1619.071041 | AF31: 0 | AG31: 0.0625 | AH31: 0 | AI31: 636.1826144 | AJ31: 0 | AK31: 0.7179108377 | AL31: 0.2820891623
A32: 1986 | B32: 0.2655572364 | J32: =IF(O32=0,"",((R32+V32)/cont1)^(1/O32)-1) -> 0.1614600226 | K32: =IF(O32=0,"",((AE32+AI32)/cont1)^(1/O32)-1) -> 0.1681131386 | N32: 2007 | O32: 21 | P32: 0.1967778704 | Q32: 0 | R32: 2145.755937 | S32: 0 | T32: 0.07 | U32: 0 | V32: 172.1167924 | W32: 0 | X32: 0.9257436398 | Y32: 0.07425636023 | AA32: 2007 | AB32: 21 | AC32: 0.1967778704 | AD32: 0 | AE32: 1889.326367 | AF32: 0 | AG32: 0.07 | AH32: 0 | AI32: 723.9364234 | AJ32: 0 | AK32: 0.7229760336 | AL32: 0.2770239664
A33: 1987 | B33: 0.2706556703 | J33: =IF(O33=0,"",((R33+V33)/cont1)^(1/O33)-1) -> 0.131585772 | K33: =IF(O33=0,"",((AE33+AI33)/cont1)^(1/O33)-1) -> 0.1454029137 | N33: 2008 | O33: 22 | P33: -0.3794265041 | Q33: 0 | R33: 1331.599263 | S33: 0 | T33: 0.08 | U33: 0 | V33: 185.8861357 | W33: 0 | X33: 0.877503839 | Y33: 0.122496161 | AA33: 2008 | AB33: 22 | AC33: -0.3794265041 | AD33: 0 | AE33: 1135.205138 | AF33: 0 | AG33: 0.08 | AH33: 0 | AI33: 846.6971441 | AJ33: 0 | AK33: 0.5727856253 | AL33: 0.4272143747
J34: =IF(O34=0,"",((R34+V34)/cont1)^(1/O34)-1) -> 0.1523073916 | K34: =IF(O34=0,"",((AE34+AI34)/cont1)^(1/O34)-1) -> 0.1618763618 | N34: 2009 | O34: 23 | P34: 0.8053252305 | Q34: 0 | R34: 2403.969747 | S34: 0 | T34: 0.09 | U34: 0 | V34: 202.615888 | W34: 0 | X34: 0.9222677033 | Y34: 0.07773229671 | AA34: 2009 | AB34: 23 | AC34: 0.8053252305 | AD34: 0 | AE34: 2504.584736 | AF34: 0 | AG34: 0.09 | AH34: 0 | AI34: 648.0820462 | AJ34: 0 | AK34: 0.7944336998 | AL34: 0.2055663002
J35: =IF(O35=0,"",((R35+V35)/cont1)^(1/O35)-1) -> 0.1504565477 | K35: =IF(O35=0,"",((AE35+AI35)/cont1)^(1/O35)-1) -> 0.1595190648 | N35: 2010 | O35: 24 | P35: 0.1094311633 | Q35: 0 | R35: 2667.038953 | S35: 0 | T35: 0.1 | U35: 0 | V35: 222.8774768 | W35: 0 | X35: 0.9228775357 | Y35: 0.07712246433 | AA35: 2010 | AB35: 24 | AC35: 0.1094311633 | AD35: 0 | AE35: 2448.366743 | AF35: 0 | AG35: 0.1 | AH35: 0 | AI35: 1040.380038 | AJ35: 0 | AK35: 0.7017897533 | AL35: 0.2982102467
J36: =IF(O36=0,"",((R36+V36)/cont1)^(1/O36)-1) -> 0.1397984573 | K36: =IF(O36=0,"",((AE36+AI36)/cont1)^(1/O36)-1) -> 0.1507717183 | N36: 2011 | O36: 25 | P36: -0.1049524299 | Q36: 0 | R36: 2387.126734 | S36: 2387.126734 | T36: 0.11 | U36: 0 | V36: 247.3939992 | W36: 247.3939992 | X36: 0.9060952544 | Y36: 0.09390474559 | AA36: 2011 | AB36: 25 | AC36: -0.1049524299 | AD36: 0 | AE36: 2185.81603 | AF36: 2185.81603 | AG36: 0.11 | AH36: 0 | AI36: 1161.752678 | AJ36: 1161.752678 | AK36: 0.6529562858 | AL36: 0.3470437142
N37: Note 35% returns listed against 1980 actually is the return
N38: generated in the financial year 1980-1981

Sheet Annual Rebalancing SIP
A1: Enter data only in green cells | H1: No Rebalancing | Y1: Annual Rebalancing
A2: Enter no of years (max 32) | D2: 15 | H2: Year of | I2: Year | J2: Sensex | K2: Annual | L2: invest. From | M2: Total Equity | O2: FD | P2: Annual | Q2: invest. From | R2: Total Debt | T2: Asset Allocation | Y2: Year of | Z2: Year | AA2: Sensex | AB2: Annual | AC2: invest. From | AD2: Total Equity | AF2: FD | AG2: Annual | AH2: invest. From | AI2: Total Debt | AK2: Asset Allocation
A3: Choose a starting year between | D3: 1980 | E3: and | F3: =2011-time1+1 -> 1997 | H3: return | J3: return | K3: investment | L3: Previous | M3: Corpus | O3: return | P3: investment | Q3: Previous | R3: Corpus | T3: Equity | U3: Debt | V3: Equity | W3: Debt | AA3: return | AB3: Investment | AC3: Previous | AD3: Corpus | AF3: return | AG3: investment | AH3: Previous | AI3: Corpus | AK3: Equity | AL3: Debt | AM3: Equity | AN3: Debt
A4: Starting year | C4: 1980 | L4: year | Q4: year | T4: Prior investment | V4: After investment | Y4: return | AC4: year | AH4: year | AK4: Prior investment | AM4: After investment
H5: 1980 | I5: =IF(H4=start-1+time1,0,IF(I4<>0,I4+1,IF(H5=start,1,0))) -> 1 | J5: 0.3489927666 | K5: =IF(I5=0,0,IF(O4=start-1+time1,0,IF(K4<>0,K4*(1+inca),IF(H5=start,12*cont1*eqper,0)))) -> 84000 | L5: =IF(I5=1,0,IF(I5=0,0,M4)) -> 0 | M5: =IF(I5=0,0,IF(I5=1,K5*(1+J5),(L5+K5)*(1+J5))) -> 113315.3924 | N5: =IF(I5=time1,M5,0) -> 0 | O5: 0.075 | P5: =IF(I5=0,0,IF(O4=start-1+time1,0,IF(P4<>0,P4*(1+inca),IF(H5=start,12*cont1*bondper,0)))) -> 36000 | Q5: =IF(I5=1,0,IF(I5=0,0,R4)) -> 0 | R5: =IF(I5=0,0,IF(I5=1,P5*(1+O5),(Q5+P5)*(1+O5))) -> 38700 | S5: =IF(I5=time1,R5,0) -> 0 | T5: =IF(I5=0,0,(K5+L5)/(K5+L5+P5+Q5)) -> 0.7 | U5: =IF(I5=0,0,(P5+Q5)/(K5+L5+P5+Q5)) -> 0.3 | V5: =IF(I5=0,0,M5/(M5+R5)) -> 0.745420517 | W5: =IF(I5=0,0,R5/(M5+R5)) -> 0.254579483 | Y5: 1980 | Z5: =IF(AF4=start-1+time1,0,IF(Z4<>0,Z4+1,IF(Y5=start,1,0))) -> 1 | AA5: 0.3489927666 | AB5: =IF(Z5=0,0,IF(AF4=start-1+time1,0,IF(AB4<>0,AB4*(1+inca),IF(Y5=start,12*cont1*eqper,0)))) -> 84000 | AC5: =IF(Z5=1,0,IF(Z5=0,0,eqper*(AD4+AI4))) -> 0 | AD5: =IF(Z5=0,0,(AB5+AC5)*(1+AA5)) -> 113315.3924 | AE5: =IF(Z5=time1,AD5,0) -> 0 | AF5: 0.075 | AG5: =IF(Z5=0,0,IF(AF4=start-1+time1,0,IF(AG4<>0,AG4*(1+inca),IF(Y5=start,12*cont1*bondper,0)))) -> 36000 | AH5: =IF(Z5=1,0,IF(Z5=0,0,bondper*(AD4+AI4))) -> 0 | AI5: =IF(Z5=0,0,(AG5+AH5)*(1+AF5)) -> 38700 | AJ5: =IF(Z5=time1,AI5,0) -> 0 | AK5: =IF(Z5=0,0,(AB5+AC5)/(AB5+AC5+AG5+AH5)) -> 0.7 | AL5: =IF(Z5=0,0,(AG5+AH5)/(AB5+AC5+AG5+AH5)) -> 0.3 | AM5: =IF(Z5=0,0,AD5/(AD5+AI5)) -> 0.745420517 | AN5: =IF(Z5=0,0,AI5/(AD5+AI5)) -> 0.254579483
A6: monthly contribution in 1st year | D6: 10000 | H6: =H5+1 -> 1981 | I6: 2 | J6: 0.2552467712 | K6: 84000 | L6: =IF(I6=1,0,IF(I6=0,0,M5)) -> 113315.3924 | M6: =IF(I6=0,0,IF(I6=1,K6*(1+J6),(L6+K6)*(1+J6))) -> 247679.5092 | N6: 0 | O6: 0.08 | P6: 36000 | Q6: =IF(I6=1,0,IF(I6=0,0,R5)) -> 38700 | R6: =IF(I6=0,0,IF(I6=1,P6*(1+O6),(Q6+P6)*(1+O6))) -> 80676 | S6: 0 | T6: =IF(I6=0,0,(K6+L6)/(K6+L6+P6+Q6)) -> 0.7253831875 | U6: =IF(I6=0,0,(P6+Q6)/(K6+L6+P6+Q6)) -> 0.2746168125 | V6: 0.754302889 | W6: 0.245697111 | Y6: =Y5+1 -> 1981 | Z6: =IF(Y5=start-1+time1,0,IF(Z5<>0,Z5+1,IF(Y6=start,1,0))) -> 2 | AA6: 0.2552467712 | AB6: 84000 | AC6: 106410.7747 | AD6: =IF(Z6=0,0,(AB6+AC6)*(1+AA6)) -> 239012.5101 | AE6: 0 | AF6: 0.08 | AG6: 36000 | AH6: 45604.61772 | AI6: =IF(Z6=0,0,(AG6+AH6)*(1+AF6)) -> 88132.98714 | AJ6: 0 | AK6: =IF(Z6=0,0,(AB6+AC6)/(AB6+AC6+AG6+AH6)) -> 0.7 | AL6: =IF(Z6=0,0,(AG6+AH6)/(AB6+AC6+AG6+AH6)) -> 0.3 | AM6: =IF(Z6=0,0,AD6/(AD6+AI6)) -> 0.73060003 | AN6: =IF(Z6=0,0,AI6/(AD6+AI6)) -> 0.26939997
A7: % increase or | B7: decrease each year | H7: =H6+1 -> 1982 | I7: 3 | J7: -0.02847825088 | K7: 84000 | L7: 247679.5092 | M7: 322233.8569 | N7: 0 | O7: 0.08 | P7: 36000 | Q7: 80676 | R7: 126010.08 | S7: 0 | T7: 0.7397690056 | U7: 0.2602309944 | V7: 0.7188805701 | W7: 0.2811194299 | Y7: =Y6+1 -> 1982 | Z7: 3 | AA7: -0.02847825088 | AB7: 84000 | AC7: 229001.8481 | AD7: 304088.1029 | AE7: 0 | AF7: 0.08 | AG7: 36000 | AH7: 98143.64918 | AI7: 144875.1411 | AJ7: 0 | AK7: 0.7 | AL7: 0.3 | AM7: 0.6773117999 | AN7: 0.3226882001
H8: 1983 | I8: 4 | J8: 0.1598978772 | K8: 84000 | L8: 322233.8569 | M8: 471189.7883 | N8: 0 | O8: 0.08 | P8: 36000 | Q8: 126010.08 | R8: 174970.8864 | S8: 0 | T8: 0.7148934296 | U8: 0.2851065704 | V8: 0.7292145851 | W8: 0.2707854149 | Y8: 1983 | Z8: 4 | AA8: 0.1598978772 | AB8: 84000 | AC8: 314274.2708 | AD8: 461957.4813 | AE8: 0 | AF8: 0.08 | AG8: 36000 | AH8: 134688.9732 | AI8: 184344.0911 | AJ8: 0 | AK8: 0.7 | AL8: 0.3 | AM8: 0.7147707835 | AN8: 0.2852292165
A9: % in equities | B9: 0.7 | C9: % in FDs | D9: =100%-eqper -> 0.3 | H9: 1984 | I9: 5 | J9: 0.442383728 | K9: 84000 | L9: 471189.7883 | M9: 800796.7166 | N9: =IF(I9=time1,M9,0) -> 0 | O9: 0.08 | P9: 36000 | Q9: 174970.8864 | R9: 227848.5573 | S9: 0 | T9: 0.7246388475 | U9: 0.2753611525 | V9: 0.7784964719 | W9: 0.2215035281 | Y9: 1984 | Z9: 5 | AA9: 0.442383728 | AB9: 84000 | AC9: 452411.1006 | AD9: 773710.6431 | AE9: =IF(Z9=time1,AD9,0) -> 0 | AF9: 0.08 | AG9: 36000 | AH9: 193890.4717 | AI9: 248281.7094 | AJ9: 0 | AK9: 0.7 | AL9: 0.3 | AM9: 0.7570610887 | AN9: 0.2429389113
H10: 1985 | I10: 6 | J10: 0.6224212966 | K10: 84000 | L10: 800796.7166 | M10: 1435513.036 | N10: =IF(I10=time1,M10,0) -> 0 | O10: 0.085 | P10: 36000 | Q10: 227848.5573 | R10: 286275.6847 | S10: 0 | T10: 0.7702958752 | U10: 0.2297041248 | V10: 0.8337335579 | W10: 0.1662664421 | Y10: 1985 | Z10: 6 | AA10: 0.6224212966 | AB10: 84000 | AC10: 715394.6468 | AD10: 1296954.899 | AE10: =IF(Z10=time1,AD10,0) -> 0 | AF10: 0.085 | AG10: 36000 | AH10: 306597.7058 | AI10: 371718.5107 | AJ10: 0 | AK10: 0.7 | AL10: 0.3 | AM10: 0.7772371103 | AN10: 0.2227628897
A11: Total must be 100% | H11: 1986 | I11: 7 | J11: -0.1110414381 | K11: 84000 | L11: 1435513.036 | M11: 1350784.123 | N11: 0 | O11: 0.085 | P11: 36000 | Q11: 286275.6847 | R11: 349669.1179 | S11: 0 | T11: 0.8250202746 | U11: 0.1749797254 | V11: 0.7943671079 | W11: 0.2056328921 | Y11: 1986 | Z11: 7 | AA11: -0.1110414381 | AB11: 84000 | AC11: 1168071.387 | AD11: 1113039.58 | AE11: =IF(Z11=time1,AD11,0) -> 0 | AF11: 0.085 | AG11: 36000 | AH11: 500602.023 | AI11: 582213.195 | AJ11: 0 | AK11: 0.7 | AL11: 0.3 | AM11: 0.6565626061 | AN11: 0.3434373939
H12: 1987 | I12: 8 | J12: -0.2194333412 | K12: 84000 | L12: 1350784.123 | M12: 1119944.649 | N12: 0 | O12: 0.09 | P12: 36000 | Q12: 349669.1179 | R12: 420379.3385 | S12: 0 | T12: 0.7881466499 | U12: 0.2118533501 | V12: 0.7270838202 | W12: 0.2729161798 | Y12: 1987 | Z12: 8 | AA12: -0.2194333412 | AB12: 84000 | AC12: 1186676.942 | AD12: 991848.0552 | AE12: 0 | AF12: 0.09 | AG12: 36000 | AH12: 508575.8324 | AI12: 593587.6573 | AJ12: 0 | AK12: 0.7 | AL12: 0.3 | AM12: 0.6255996679 | AN12: 0.3744003321
B13: Equity corpus | C13: Debt Corpus | D13: Total corpus | E13: % Equity | F13: %Debt | H13: 1988 | I13: 9 | J13: 0.7912995456 | K13: 84000 | L13: 1119944.649 | M13: 2156625.503 | N13: 0 | O13: 0.09 | P13: 36000 | Q13: 420379.3385 | R13: 497453.479 | S13: 0 | T13: 0.7251263357 | U13: 0.2748736643 | V13: 0.8125702052 | W13: 0.1874297948 | Y13: 1988 | Z13: 9 | AA13: 0.7912995456 | AB13: 84000 | AC13: 1109804.999 | AD13: 2138462.352 | AE13: 0 | AF13: 0.09 | AG13: 36000 | AH13: 475630.7138 | AI13: 557677.478 | AJ13: 0 | AK13: 0.7 | AL13: 0.3 | AM13: 0.7931570641 | AN13: 0.2068429359
A14: no rebalancing | B14: =MAX(N2:N57) -> 11080814.87 | C14: =MAX(S2:S57) -> 1208986.49 | D14: =B14+C14 -> 12289801.36 | E14: =B14/D14 -> 0.9016268486 | F14: =C14/D14 -> 0.09837315144 | H14: 1989 | I14: 10 | J14: 0.09452073991 | K14: 84000 | L14: 2156625.503 | M14: 2452411.084 | N14: 0 | O14: 0.09 | P14: 36000 | Q14: 497453.479 | R14: 581464.2921 | S14: 0 | T14: 0.8077006883 | U14: 0.1922993117 | V14: 0.8083427234 | W14: 0.1916572766 | Y14: 1989 | Z14: 10 | AA14: 0.09452073991 | AB14: 84000 | AC14: 1887297.881 | AD14: 2157626.415 | AE14: 0 | AF14: 0.09 | AG14: 36000 | AH14: 808841.949 | AI14: 920877.7244 | AJ14: 0 | AK14: 0.7 | AL14: 0.3 | AM14: 0.7008684469 | AN14: 0.2991315531
A15: annual rebalancing | B15: =MAX(AE4:AE58) -> 8580916.929 | C15: =MAX(AJ4:AJ58) -> 4730533.933 | D15: =B15+C15 -> 13311450.86 | E15: =B15/D15 -> 0.6446267216 | F15: =C15/D15 -> 0.3553732784 | H15: 1990 | I15: 11 | J15: 0.4953844184 | K15: 84000 | L15: 2452411.084 | M15: 3792909.614 | N15: 0 | O15: 0.09 | P15: 36000 | Q15: 581464.2921 | R15: 673036.0783 | S15: 0 | T15: 0.8042204531 | U15: 0.1957795469 | V15: 0.8492959555 | W15: 0.1507040445 | Y15: 1990 | Z15: 11 | AA15: 0.4953844184 | AB15: 84000 | AC15: 2154952.898 | AD15: 3348095.277 | AE15: 0 | AF15: 0.09 | AG15: 36000 | AH15: 923551.2419 | AI15: 1045910.854 | AJ15: 0 | AK15: 0.7 | AL15: 0.3 | AM15: 0.7619687314 | AN15: 0.2380312686
A16: The % equity and debt shown here represents the final asset allocation | H16: 1991 | I16: 12 | J16: 2.668758615 | K16: 84000 | L16: 3792909.614 | M16: 14223445.55 | N16: 0 | O16: 0.12 | P16: 36000 | Q16: 673036.0783 | R16: 794120.4077 | S16: 0 | T16: 0.8453893426 | U16: 0.1546106574 | V16: 0.9471205647 | W16: 0.05287943534 | Y16: 1991 | Z16: 12 | AA16: 2.668758615 | AB16: 84000 | AC16: 3075804.291 | AD16: 11592559.22 | AE16: 0 | AF16: 0.12 | AG16: 36000 | AH16: 1318201.839 | AI16: 1516706.06 | AJ16: 0 | AK16: 0.7 | AL16: 0.3 | AM16: 0.884302741 | AN16: 0.115697259
A17: % difference bet the two corpuses | C17: =(D15-D14)/D14 -> 0.08312986333 | D17: if started at | E17: =start -> 1980 | H17: 1992 | I17: 13 | J17: -0.467789965 | K17: 84000 | L17: 14223445.55 | M17: 7614566.095 | N17: 0 | O17: 0.11 | P17: 36000 | Q17: 794120.4077 | R17: 921433.6526 | S17: 0 | T17: 0.9451615662 | U17: 0.05483843375 | V17: 0.892053224 | W17: 0.107946776 | Y17: 1992 | Z17: 13 | AA17: -0.467789965 | AB17: 84000 | AC17: 9176485.694 | AD17: 4928523.415 | AE17: 0 | AF17: 0.11 | AG17: 36000 | AH17: 3932779.583 | AI17: 4405345.337 | AJ17: 0 | AK17: 0.7 | AL17: 0.3 | AM17: 0.5280257893 | AN17: 0.4719742107
A18: +ve means rebalanced portfolio is higher | H18: 1993 | I18: 14 | J18: 0.6570738253 | K18: 84000 | L18: 7614566.095 | M18: 12757092.37 | N18: 0 | O18: 0.1 | P18: 36000 | Q18: 921433.6526 | R18: 1053177.018 | S18: 0 | T18: 0.8893907486 | U18: 0.1106092514 | V18: 0.9237395746 | W18: 0.07626042537 | Y18: 1993 | Z18: 14 | AA18: 0.6570738253 | AB18: 84000 | AC18: 6533708.127 | AD18: 10966030.92 | AE18: 0 | AF18: 0.1 | AG18: 36000 | AH18: 2800160.626 | AI18: 3119776.688 | AJ18: 0 | AK18: 0.7 | AL18: 0.3 | AM18: 0.778516307 | AN18: 0.221483693
A19: Click on the macro to find out the % difference | H19: 1994 | I19: 15 | J19: -0.1370816012 | K19: 84000 | L19: 12757092.37 | M19: 11080814.87 | N19: 11080814.87 | O19: 0.11 | P19: 36000 | Q19: 1053177.018 | R19: 1208986.49 | S19: 1208986.49 | T19: 0.9218122071 | U19: 0.07818779291 | V19: 0.9016268486 | W19: 0.09837315144 | Y19: 1994 | Z19: 15 | AA19: -0.1370816012 | AB19: 84000 | AC19: 9860065.326 | AD19: 8580916.929 | AE19: 8580916.929 | AF19: 0.11 | AG19: 36000 | AH19: 4225742.282 | AI19: 4730533.933 | AJ19: 4730533.933 | AK19: 0.7 | AL19: 0.3 | AM19: 0.6446267216 | AN19: 0.3553732784
A20: between the two corpuses for all possible | H20: 1995 | I20: 0 | J20: 0.03239843482 | K20: 0 | L20: 0 | M20: 0 | N20: 0 | O20: 0.12 | P20: 0 | Q20: 0 | R20: 0 | S20: 0 | T20: 0 | U20: 0 | V20: 0 | W20: 0 | Y20: 1995 | Z20: 0 | AA20: 0.03239843482 | AB20: 0 | AC20: 0 | AD20: 0 | AE20: 0 | AF20: 0.12 | AG20: 0 | AH20: 0 | AI20: 0 | AJ20: 0 | AK20: 0 | AL20: 0 | AM20: 0 | AN20: 0
A21: investment durations between | H21: 1996 | I21: 0 | J21: -0.001699038499 | K21: 0 | L21: 0 | M21: 0 | N21: 0 | O21: 0.12 | P21: 0 | Q21: 0 | R21: 0 | S21: 0 | T21: 0 | U21: 0 | V21: 0 | W21: 0 | Y21: 1996 | Z21: 0 | AA21: -0.001699038499 | AB21: 0 | AC21: 0 | AD21: 0 | AE21: 0 | AF21: 0.12 | AG21: 0 | AH21: 0 | AI21: 0 | AJ21: 0 | AK21: 0 | AL21: 0 | AM21: 0 | AN21: 0
A22: =D3 -> 1980 | B22: and | C22: =F3 -> 1997 | H22: 1997 | I22: 0 | J22: 0.1582497493 | K22: 0 | L22: 0 | M22: 0 | N22: 0 | O22: 0.11 | P22: 0 | Q22: 0 | R22: 0 | S22: 0 | T22: 0 | U22: 0 | V22: 0 | W22: 0 | Y22: 1997 | Z22: 0 | AA22: 0.1582497493 | AB22: 0 | AC22: 0 | AD22: 0 | AE22: 0 | AF22: 0.11 | AG22: 0 | AH22: 0 | AI22: 0 | AJ22: 0 | AK22: 0 | AL22: 0 | AM22: 0 | AN22: 0
A23: Average % difference bet the two corpuses | D23: =AVERAGE(B26:B48) -> 0.1305410898 | H23: 1998 | I23: 0 | J23: -0.03924988761 | K23: 0 | L23: 0 | M23: 0 | N23: 0 | O23: 0.105 | P23: 0 | Q23: 0 | R23: 0 | S23: 0 | T23: 0 | U23: 0 | V23: 0 | W23: 0 | Y23: 1998 | Z23: 0 | AA23: -0.03924988761 | AB23: 0 | AC23: 0 | AD23: 0 | AE23: 0 | AF23: 0.105 | AG23: 0 | AH23: 0 | AI23: 0 | AJ23: 0 | AK23: 0 | AL23: 0 | AM23: 0 | AN23: 0
H24: 1999 | I24: 0 | J24: 0.3372549439 | K24: 0 | L24: 0 | M24: 0 | N24: 0 | O24: 0.085 | P24: 0 | Q24: 0 | R24: 0 | S24: 0 | T24: 0 | U24: 0 | V24: 0 | W24: 0 | Y24: 1999 | Z24: 0 | AA24: 0.3372549439 | AB24: 0 | AC24: 0 | AD24: 0 | AE24: 0 | AF24: 0.085 | AG24: 0 | AH24: 0 | AI24: 0 | AJ24: 0 | AK24: 0 | AL24: 0 | AM24: 0 | AN24: 0
A25: Year | B25: % difference | H25: 2000 | I25: 0 | J25: -0.279308497 | K25: 0 | L25: 0 | M25: 0 | N25: 0 | O25: 0.085 | P25: 0 | Q25: 0 | R25: 0 | S25: 0 | T25: 0 | U25: 0 | V25: 0 | W25: 0 | Y25: 2000 | Z25: 0 | AA25: -0.279308497 | AB25: 0 | AC25: 0 | AD25: 0 | AE25: 0 | AF25: 0.085 | AG25: 0 | AH25: 0 | AI25: 0 | AJ25: 0 | AK25: 0 | AL25: 0 | AM25: 0 | AN25: 0
A26: 1980 | B26: 0.07742175555 | H26: 2001 | I26: 0 | J26: -0.03746275365 | K26: 0 | L26: 0 | M26: 0 | N26: 0 | O26: 0.075 | P26: 0 | Q26: 0 | R26: 0 | S26: 0 | T26: 0 | U26: 0 | V26: 0 | W26: 0 | Y26: 2001 | Z26: 0 | AA26: -0.03746275365 | AB26: 0 | AC26: 0 | AD26: 0 | AE26: 0 | AF26: 0.075 | AG26: 0 | AH26: 0 | AI26: 0 | AJ26: 0 | AK26: 0 | AL26: 0 | AM26: 0 | AN26: 0
A27: 1981 | B27: 0.1264915683 | H27: 2002 | I27: 0 | J27: -0.1212417312 | K27: 0 | L27: 0 | M27: 0 | N27: 0 | O27: 0.0425 | P27: 0 | Q27: 0 | R27: 0 | S27: 0 | T27: 0 | U27: 0 | V27: 0 | W27: 0 | Y27: 2002 | Z27: 0 | AA27: -0.1212417312 | AB27: 0 | AC27: 0 | AD27: 0 | AE27: 0 | AF27: 0.0425 | AG27: 0 | AH27: 0 | AI27: 0 | AJ27: 0 | AK27: 0 | AL27: 0 | AM27: 0 | AN27: 0
A28: 1982 | B28: 0.1689828025 | H28: 2003 | I28: 0 | J28: 0.8337531817 | K28: 0 | L28: 0 | M28: 0 | N28: 0 | O28: 0.04 | P28: 0 | Q28: 0 | R28: 0 | S28: 0 | T28: 0 | U28: 0 | V28: 0 | W28: 0 | Y28: 2003 | Z28: 0 | AA28: 0.8337531817 | AB28: 0 | AC28: 0 | AD28: 0 | AE28: 0 | AF28: 0.04 | AG28: 0 | AH28: 0 | AI28: 0 | AJ28: 0 | AK28: 0 | AL28: 0 | AM28: 0 | AN28: 0
A29: 1983 | B29: 0.1581462313 | H29: 2004 | I29: 0 | J29: 0.1613816048 | K29: 0 | L29: 0 | M29: 0 | N29: 0 | O29: 0.0525 | P29: 0 | Q29: 0 | R29: 0 | S29: 0 | T29: 0 | U29: 0 | V29: 0 | W29: 0 | Y29: 2004 | Z29: 0 | AA29: 0.1613816048 | AB29: 0 | AC29: 0 | AD29: 0 | AE29: 0 | AF29: 0.0525 | AG29: 0 | AH29: 0 | AI29: 0 | AJ29: 0 | AK29: 0 | AL29: 0 | AM29: 0 | AN29: 0
A30: 1984 | B30: 0.1983617359 | H30: 2005 | I30: 0 | J30: 0.7373036677 | K30: 0 | L30: 0 | M30: 0 | N30: 0 | O30: 0.06 | P30: 0 | Q30: 0 | R30: 0 | S30: 0 | T30: 0 | U30: 0 | V30: 0 | W30: 0 | Y30: 2005 | Z30: 0 | AA30: 0.7373036677 | AB30: 0 | AC30: 0 | AD30: 0 | AE30: 0 | AF30: 0.06 | AG30: 0 | AH30: 0 | AI30: 0 | AJ30: 0 | AK30: 0 | AL30: 0 | AM30: 0 | AN30: 0
A31: 1985 | B31: 0.1677435029 | H31: 2006 | I31: 0 | J31: 0.1588741135 | K31: 0 | L31: 0 | M31: 0 | N31: 0 | O31: 0.0625 | P31: 0 | Q31: 0 | R31: 0 | S31: 0 | T31: 0 | U31: 0 | V31: 0 | W31: 0 | Y31: 2006 | Z31: 0 | AA31: 0.1588741135 | AB31: 0 | AC31: 0 | AD31: 0 | AE31: 0 | AF31: 0.0625 | AG31: 0 | AH31: 0 | AI31: 0 | AJ31: 0 | AK31: 0 | AL31: 0 | AM31: 0 | AN31: 0
A32: 1986 | B32: 0.2335679104 | H32: 2007 | I32: 0 | J32: 0.1967778704 | K32: 0 | L32: 0 | M32: 0 | N32: 0 | O32: 0.07 | P32: 0 | Q32: 0 | R32: 0 | S32: 0 | T32: 0 | U32: 0 | V32: 0 | W32: 0 | Y32: 2007 | Z32: 0 | AA32: 0.1967778704 | AB32: 0 | AC32: 0 | AD32: 0 | AE32: 0 | AF32: 0.07 | AG32: 0 | AH32: 0 | AI32: 0 | AJ32: 0 | AK32: 0 | AL32: 0 | AM32: 0 | AN32: 0
A33: 1987 | B33: 0.209125172 | H33: 2008 | I33: 0 | J33: -0.3794265041 | K33: 0 | L33: 0 | M33: 0 | N33: 0 | O33: 0.08 | P33: 0 | Q33: 0 | R33: 0 | S33: 0 | T33: 0 | U33: 0 | V33: 0 | W33: 0 | Y33: 2008 | Z33: 0 | AA33: -0.3794265041 | AB33: 0 | AC33: 0 | AD33: 0 | AE33: 0 | AF33: 0.08 | AG33: 0 | AH33: 0 | AI33: 0 | AJ33: 0 | AK33: 0 | AL33: 0 | AM33: 0 | AN33: 0
A34: 1988 | B34: 0.1732216229 | H34: 2009 | I34: 0 | J34: 0.8053252305 | K34: 0 | L34: 0 | M34: 0 | N34: 0 | O34: 0.09 | P34: 0 | Q34: 0 | R34: 0 | S34: 0 | T34: 0 | U34: 0 | V34: 0 | W34: 0 | Y34: 2009 | Z34: 0 | AA34: 0.8053252305 | AB34: 0 | AC34: 0 | AD34: 0 | AE34: 0 | AF34: 0.09 | AG34: 0 | AH34: 0 | AI34: 0 | AJ34: 0 | AK34: 0 | AL34: 0 | AM34: 0 | AN34: 0
A35: 1989 | B35: 0.1864551126 | H35: 2010 | I35: 0 | J35: 0.1094311633 | K35: 0 | L35: 0 | M35: 0 | N35: 0 | O35: 0.1 | P35: 0 | Q35: 0 | R35: 0 | S35: 0 | T35: 0 | U35: 0 | V35: 0 | W35: 0 | Y35: 2010 | Z35: 0 | AA35: 0.1094311633 | AB35: 0 | AC35: 0 | AD35: 0 | AE35: 0 | AF35: 0.1 | AG35: 0 | AH35: 0 | AI35: 0 | AJ35: 0 | AK35: 0 | AL35: 0 | AM35: 0 | AN35: 0
A36: 1990 | B36: 0.1491836802 | H36: 2011 | I36: 0 | J36: -0.1049524299 | K36: 0 | L36: 0 | M36: 0 | N36: 0 | O36: 0.11 | P36: 0 | Q36: 0 | R36: 0 | S36: 0 | T36: 0 | U36: 0 | V36: 0 | W36: 0 | Y36: 2011 | Z36: 0 | AA36: -0.1049524299 | AB36: 0 | AC36: 0 | AD36: 0 | AE36: 0 | AF36: 0.11 | AG36: 0 | AH36: 0 | AI36: 0 | AJ36: 0 | AK36: 0 | AL36: 0 | AM36: 0 | AN36: 0
A37: 1991 | B37: 0.09785367659 | H37: Note 35% returns listed against 1980 actually is the return
A38: 1992 | B38: 0.04874316574 | H38: generated in the financial year 1980-1981
A39: 1993 | B39: 0.0148188527
A40: 1994 | B40: 0.1112518749
A41: 1995 | B41: 0.07458341771
A42: 1996 | B42: 0.06210776047
A43: 1997 | B43: 0.09167977391

Sheet Variable frequency Rebal. SIP
A1: Enter data only in green cells | H1: No Rebalancing | Y1: Annual Rebalancing | AW1: None
A2: Enter no of years (max 32) | D2: 10 | H2: Year of | I2: Year | J2: Sensex | K2: Annual | L2: invest. From | M2: Total Equity | O2: FD | P2: Annual | Q2: invest. From | R2: Total Debt | T2: Asset Allocation | Y2: Year of | Z2: Year | AB2: Sensex | AC2: Annual | AD2: invest. From | AE2: Total Equity | AG2: FD | AH2: Annual | AI2: invest. From | AJ2: Total Debt | AL2: Asset Allocation | AW2: 1
A3: Choose a starting year between | D3: 1980 | E3: and | F3: =2011-time1+1 -> 2002 | H3: return | J3: return | K3: investment | L3: Previous | M3: Corpus | O3: return | P3: investment | Q3: Previous | R3: Corpus | T3: Equity | U3: Debt | V3: Equity | W3: Debt | AB3: return | AC3: Investment | AD3: Previous | AE3: Corpus | AG3: return | AH3: investment | AI3: Previous | AJ3: Corpus | AL3: Equity | AM3: Debt | AN3: Equity | AO3: Debt | AW3: =IF(AW2<time1/2,AW2+1,"") -> 2
A4: Starting year | C4: 2002 | L4: year | Q4: year | T4: Prior investment | V4: After investment | Y4: return | AD4: year | AI4: year | AL4: Prior investment | AN4: After investment | AW4: 3
A5: monthly contribution in 1st year | D5: 10000 | H5: 1980 | I5: =IF(H4=start-1+time1,0,IF(I4<>0,I4+1,IF(H5=start,1,0))) -> 0 | J5: 0.3489927666 | K5: =IF(I5=0,0,IF(O4=start-1+time1,0,IF(K4<>0,K4*(1+inca),IF(H5=start,12*cont1*eqper,0)))) -> 0 | L5: =IF(I5=1,0,IF(I5=0,0,M4)) -> 0 | M5: =IF(I5=0,0,IF(I5=1,K5*(1+J5),(L5+K5)*(1+J5))) -> 0 | N5: =IF(I5=time1,M5,0) -> 0 | O5: 0.075 | P5: =IF(I5=0,0,IF(O4=start-1+time1,0,IF(P4<>0,P4*(1+inca),IF(H5=start,12*cont1*bondper,0)))) -> 0 | Q5: =IF(I5=1,0,IF(I5=0,0,R4)) -> 0 | R5: =IF(I5=0,0,IF(I5=1,P5*(1+O5),(Q5+P5)*(1+O5))) -> 0 | S5: =IF(I5=time1,R5,0) -> 0 | T5: =IF(I5=0,0,(K5+L5)/(K5+L5+P5+Q5)) -> 0 | U5: =IF(I5=0,0,(P5+Q5)/(K5+L5+P5+Q5)) -> 0 | V5: =IF(I5=0,0,M5/(M5+R5)) -> 0 | W5: =IF(I5=0,0,R5/(M5+R5)) -> 0 | Y5: 1980 | Z5: =IF(AG4=start-1+time1,0,IF(Z4<>0,Z4+1,IF(Y5=start,1,0))) -> 0 | AA5: =IF(Z5=0,"",IF(freq="None",5,INT(Z5/freq)-(Z5/freq))) ->  | AB5: 0.3489927666 | AC5: =IF(Z5=0,0,IF(AG4=start-1+time1,0,IF(AC4<>0,AC4*(1+inca),IF(Y5=start,12*cont1*eqper,0)))) -> 0 | AD5: =IF(Z5=1,0,IF(Z5=0,0,IF(AA5=0,eqper*(AE4+AJ4),AE4))) -> 0 | AE5: =IF(Z5=0,0,(AC5+AD5)*(1+AB5)) -> 0 | AF5: =IF(Z5=time1,AE5,0) -> 0 | AG5: 0.075 | AH5: =IF(Z5=0,0,IF(AG4=start-1+time1,0,IF(AH4<>0,AH4*(1+inca),IF(Y5=start,12*cont1*bondper,0)))) -> 0 | AI5: =IF(Z5=1,0,IF(Z5=0,0,IF(AA5=0,bondper*(AE4+AJ4),AJ4))) -> 0 | AJ5: =IF(Z5=0,0,(AH5+AI5)*(1+AG5)) -> 0 | AK5: =IF(Z5=time1,AJ5,0) -> 0 | AL5: =IF(Z5=0,0,(AC5+AD5)/(AC5+AD5+AH5+AI5)) -> 0 | AM5: =IF(Z5=0,0,(AH5+AI5)/(AC5+AD5+AH5+AI5)) -> 0 | AN5: =IF(Z5=0,0,AE5/(AE5+AJ5)) -> 0 | AO5: =IF(Z5=0,0,AJ5/(AE5+AJ5)) -> 0 | AW5: 4
A6: % increase or decrease each year | D6: 0 | H6: =H5+1 -> 1981 | I6: 0 | J6: 0.2552467712 | K6: 0 | L6: =IF(I6=1,0,IF(I6=0,0,M5)) -> 0 | M6: =IF(I6=0,0,IF(I6=1,K6*(1+J6),(L6+K6)*(1+J6))) -> 0 | N6: 0 | O6: 0.08 | P6: 0 | Q6: =IF(I6=1,0,IF(I6=0,0,R5)) -> 0 | R6: =IF(I6=0,0,IF(I6=1,P6*(1+O6),(Q6+P6)*(1+O6))) -> 0 | S6: 0 | T6: =IF(I6=0,0,(K6+L6)/(K6+L6+P6+Q6)) -> 0 | U6: =IF(I6=0,0,(P6+Q6)/(K6+L6+P6+Q6)) -> 0 | V6: 0 | W6: 0 | Y6: =Y5+1 -> 1981 | Z6: =IF(Y5=start-1+time1,0,IF(Z5<>0,Z5+1,IF(Y6=start,1,0))) -> 0 | AB6: 0.2552467712 | AC6: 0 | AD6: 0 | AE6: =IF(Z6=0,0,(AC6+AD6)*(1+AB6)) -> 0 | AF6: 0 | AG6: 0.08 | AH6: 0 | AI6: 0 | AJ6: =IF(Z6=0,0,(AH6+AI6)*(1+AG6)) -> 0 | AK6: 0 | AL6: =IF(Z6=0,0,(AC6+AD6)/(AC6+AD6+AH6+AI6)) -> 0 | AM6: =IF(Z6=0,0,(AH6+AI6)/(AC6+AD6+AH6+AI6)) -> 0 | AN6: =IF(Z6=0,0,AE6/(AE6+AJ6)) -> 0 | AO6: =IF(Z6=0,0,AJ6/(AE6+AJ6)) -> 0 | AW6: 5
H7: =H6+1 -> 1982 | I7: 0 | J7: -0.02847825088 | K7: 0 | L7: 0 | M7: 0 | N7: 0 | O7: 0.08 | P7: 0 | Q7: 0 | R7: 0 | S7: 0 | T7: 0 | U7: 0 | V7: 0 | W7: 0 | Y7: =Y6+1 -> 1982 | Z7: 0 | AB7: -0.02847825088 | AC7: 0 | AD7: 0 | AE7: 0 | AF7: 0 | AG7: 0.08 | AH7: 0 | AI7: 0 | AJ7: 0 | AK7: 0 | AL7: 0 | AM7: 0 | AN7: 0 | AO7: 0
A8: Frequency of rebalancing: Every | C8: 1 | D8: Years | H8: 1983 | I8: 0 | J8: 0.1598978772 | K8: 0 | L8: 0 | M8: 0 | N8: 0 | O8: 0.08 | P8: 0 | Q8: 0 | R8: 0 | S8: 0 | T8: 0 | U8: 0 | V8: 0 | W8: 0 | Y8: 1983 | Z8: 0 | AB8: 0.1598978772 | AC8: 0 | AD8: 0 | AE8: 0 | AF8: 0 | AG8: 0.08 | AH8: 0 | AI8: 0 | AJ8: 0 | AK8: 0 | AL8: 0 | AM8: 0 | AN8: 0 | AO8: 0
H9: 1984 | I9: 0 | J9: 0.442383728 | K9: 0 | L9: 0 | M9: 0 | N9: =IF(I9=time1,M9,0) -> 0 | O9: 0.08 | P9: 0 | Q9: 0 | R9: 0 | S9: 0 | T9: 0 | U9: 0 | V9: 0 | W9: 0 | Y9: 1984 | Z9: 0 | AB9: 0.442383728 | AC9: 0 | AD9: 0 | AE9: 0 | AF9: =IF(Z9=time1,AE9,0) -> 0 | AG9: 0.08 | AH9: 0 | AI9: 0 | AJ9: 0 | AK9: 0 | AL9: 0 | AM9: 0 | AN9: 0 | AO9: 0
A10: % in equities | B10: 0.5 | C10: % in FDs | D10: =100%-eqper -> 0.5 | H10: 1985 | I10: 0 | J10: 0.6224212966 | K10: 0 | L10: 0 | M10: 0 | N10: =IF(I10=time1,M10,0) -> 0 | O10: 0.085 | P10: 0 | Q10: 0 | R10: 0 | S10: 0 | T10: 0 | U10: 0 | V10: 0 | W10: 0 | Y10: 1985 | Z10: 0 | AB10: 0.6224212966 | AC10: 0 | AD10: 0 | AE10: 0 | AF10: =IF(Z10=time1,AE10,0) -> 0 | AG10: 0.085 | AH10: 0 | AI10: 0 | AJ10: 0 | AK10: 0 | AL10: 0 | AM10: 0 | AN10: 0 | AO10: 0
A11: Total must be 100% | H11: 1986 | I11: 0 | J11: -0.1110414381 | K11: 0 | L11: 0 | M11: 0 | N11: 0 | O11: 0.085 | P11: 0 | Q11: 0 | R11: 0 | S11: 0 | T11: 0 | U11: 0 | V11: 0 | W11: 0 | Y11: 1986 | Z11: 0 | AB11: -0.1110414381 | AC11: 0 | AD11: 0 | AE11: 0 | AF11: =IF(Z11=time1,AE11,0) -> 0 | AG11: 0.085 | AH11: 0 | AI11: 0 | AJ11: 0 | AK11: 0 | AL11: 0 | AM11: 0 | AN11: 0 | AO11: 0
H12: 1987 | I12: 0 | J12: -0.2194333412 | K12: 0 | L12: 0 | M12: 0 | N12: 0 | O12: 0.09 | P12: 0 | Q12: 0 | R12: 0 | S12: 0 | T12: 0 | U12: 0 | V12: 0 | W12: 0 | Y12: 1987 | Z12: 0 | AB12: -0.2194333412 | AC12: 0 | AD12: 0 | AE12: 0 | AF12: 0 | AG12: 0.09 | AH12: 0 | AI12: 0 | AJ12: 0 | AK12: 0 | AL12: 0 | AM12: 0 | AN12: 0 | AO12: 0
B13: Equity corpus | C13: Debt Corpus | D13: Total corpus | E13: % Equity | F13: %Debt | H13: 1988 | I13: 0 | J13: 0.7912995456 | K13: 0 | L13: 0 | M13: 0 | N13: 0 | O13: 0.09 | P13: 0 | Q13: 0 | R13: 0 | S13: 0 | T13: 0 | U13: 0 | V13: 0 | W13: 0 | Y13: 1988 | Z13: 0 | AB13: 0.7912995456 | AC13: 0 | AD13: 0 | AE13: 0 | AF13: 0 | AG13: 0.09 | AH13: 0 | AI13: 0 | AJ13: 0 | AK13: 0 | AL13: 0 | AM13: 0 | AN13: 0 | AO13: 0
A14: without rebalancing | B14: =MAX(N2:N57) -> 1451185.805 | C14: =MAX(S2:S57) -> 941949.105 | D14: =B14+C14 -> 2393134.91 | E14: =B14/D14 -> 0.6063953181 | F14: =C14/D14 -> 0.3936046819 | H14: 1989 | I14: 0 | J14: 0.09452073991 | K14: 0 | L14: 0 | M14: 0 | N14: 0 | O14: 0.09 | P14: 0 | Q14: 0 | R14: 0 | S14: 0 | T14: 0 | U14: 0 | V14: 0 | W14: 0 | Y14: 1989 | Z14: 0 | AB14: 0.09452073991 | AC14: 0 | AD14: 0 | AE14: 0 | AF14: 0 | AG14: 0.09 | AH14: 0 | AI14: 0 | AJ14: 0 | AK14: 0 | AL14: 0 | AM14: 0 | AN14: 0 | AO14: 0
A15: with rebalancing | B15: =MAX(AF4:AF58) -> 1118498.423 | C15: =MAX(AK4:AK58) -> 1387114.261 | D15: =B15+C15 -> 2505612.684 | E15: =B15/D15 -> 0.4463971745 | F15: =C15/D15 -> 0.5536028255 | H15: 1990 | I15: 0 | J15: 0.4953844184 | K15: 0 | L15: 0 | M15: 0 | N15: 0 | O15: 0.09 | P15: 0 | Q15: 0 | R15: 0 | S15: 0 | T15: 0 | U15: 0 | V15: 0 | W15: 0 | Y15: 1990 | Z15: 0 | AB15: 0.4953844184 | AC15: 0 | AD15: 0 | AE15: 0 | AF15: 0 | AG15: 0.09 | AH15: 0 | AI15: 0 | AJ15: 0 | AK15: 0 | AL15: 0 | AM15: 0 | AN15: 0 | AO15: 0
A16: The % equity and debt shown here represents the final asset allocation | H16: 1991 | I16: 0 | J16: 2.668758615 | K16: 0 | L16: 0 | M16: 0 | N16: 0 | O16: 0.12 | P16: 0 | Q16: 0 | R16: 0 | S16: 0 | T16: 0 | U16: 0 | V16: 0 | W16: 0 | Y16: 1991 | Z16: 0 | AB16: 2.668758615 | AC16: 0 | AD16: 0 | AE16: 0 | AF16: 0 | AG16: 0.12 | AH16: 0 | AI16: 0 | AJ16: 0 | AK16: 0 | AL16: 0 | AM16: 0 | AN16: 0 | AO16: 0
A17: % difference bet the two corpuses | C17: =(D15-D14)/D14 -> 0.0470001811 | H17: 1992 | I17: 0 | J17: -0.467789965 | K17: 0 | L17: 0 | M17: 0 | N17: 0 | O17: 0.11 | P17: 0 | Q17: 0 | R17: 0 | S17: 0 | T17: 0 | U17: 0 | V17: 0 | W17: 0 | Y17: 1992 | Z17: 0 | AB17: -0.467789965 | AC17: 0 | AD17: 0 | AE17: 0 | AF17: 0 | AG17: 0.11 | AH17: 0 | AI17: 0 | AJ17: 0 | AK17: 0 | AL17: 0 | AM17: 0 | AN17: 0 | AO17: 0
A18: +ve means rebalanced portfolio is higher | H18: 1993 | I18: 0 | J18: 0.6570738253 | K18: 0 | L18: 0 | M18: 0 | N18: 0 | O18: 0.1 | P18: 0 | Q18: 0 | R18: 0 | S18: 0 | T18: 0 | U18: 0 | V18: 0 | W18: 0 | Y18: 1993 | Z18: 0 | AB18: 0.6570738253 | AC18: 0 | AD18: 0 | AE18: 0 | AF18: 0 | AG18: 0.1 | AH18: 0 | AI18: 0 | AJ18: 0 | AK18: 0 | AL18: 0 | AM18: 0 | AN18: 0 | AO18: 0
A19: Click on the macro to find out the % difference | H19: 1994 | I19: 0 | J19: -0.1370816012 | K19: 0 | L19: 0 | M19: 0 | N19: 0 | O19: 0.11 | P19: 0 | Q19: 0 | R19: 0 | S19: 0 | T19: 0 | U19: 0 | V19: 0 | W19: 0 | Y19: 1994 | Z19: 0 | AB19: -0.1370816012 | AC19: 0 | AD19: 0 | AE19: 0 | AF19: 0 | AG19: 0.11 | AH19: 0 | AI19: 0 | AJ19: 0 | AK19: 0 | AL19: 0 | AM19: 0 | AN19: 0 | AO19: 0
A20: between the two corpuses for all possible | H20: 1995 | I20: 0 | J20: 0.03239843482 | K20: 0 | L20: 0 | M20: 0 | N20: 0 | O20: 0.12 | P20: 0 | Q20: 0 | R20: 0 | S20: 0 | T20: 0 | U20: 0 | V20: 0 | W20: 0 | Y20: 1995 | Z20: 0 | AB20: 0.03239843482 | AC20: 0 | AD20: 0 | AE20: 0 | AF20: 0 | AG20: 0.12 | AH20: 0 | AI20: 0 | AJ20: 0 | AK20: 0 | AL20: 0 | AM20: 0 | AN20: 0 | AO20: 0
A21: investment durations between | H21: 1996 | I21: 0 | J21: -0.001699038499 | K21: 0 | L21: 0 | M21: 0 | N21: 0 | O21: 0.12 | P21: 0 | Q21: 0 | R21: 0 | S21: 0 | T21: 0 | U21: 0 | V21: 0 | W21: 0 | Y21: 1996 | Z21: 0 | AB21: -0.001699038499 | AC21: 0 | AD21: 0 | AE21: 0 | AF21: 0 | AG21: 0.12 | AH21: 0 | AI21: 0 | AJ21: 0 | AK21: 0 | AL21: 0 | AM21: 0 | AN21: 0 | AO21: 0
A22: =D3 -> 1980 | B22: and | C22: =F3 -> 2002 | H22: 1997 | I22: 0 | J22: 0.1582497493 | K22: 0 | L22: 0 | M22: 0 | N22: 0 | O22: 0.11 | P22: 0 | Q22: 0 | R22: 0 | S22: 0 | T22: 0 | U22: 0 | V22: 0 | W22: 0 | Y22: 1997 | Z22: 0 | AB22: 0.1582497493 | AC22: 0 | AD22: 0 | AE22: 0 | AF22: 0 | AG22: 0.11 | AH22: 0 | AI22: 0 | AJ22: 0 | AK22: 0 | AL22: 0 | AM22: 0 | AN22: 0 | AO22: 0
A23: Average % difference bet the two corpuses | D23: =AVERAGE(B26:B48) -> 0.05364752659 | H23: 1998 | I23: 0 | J23: -0.03924988761 | K23: 0 | L23: 0 | M23: 0 | N23: 0 | O23: 0.105 | P23: 0 | Q23: 0 | R23: 0 | S23: 0 | T23: 0 | U23: 0 | V23: 0 | W23: 0 | Y23: 1998 | Z23: 0 | AB23: -0.03924988761 | AC23: 0 | AD23: 0 | AE23: 0 | AF23: 0 | AG23: 0.105 | AH23: 0 | AI23: 0 | AJ23: 0 | AK23: 0 | AL23: 0 | AM23: 0 | AN23: 0 | AO23: 0
H24: 1999 | I24: 0 | J24: 0.3372549439 | K24: 0 | L24: 0 | M24: 0 | N24: 0 | O24: 0.085 | P24: 0 | Q24: 0 | R24: 0 | S24: 0 | T24: 0 | U24: 0 | V24: 0 | W24: 0 | Y24: 1999 | Z24: 0 | AB24: 0.3372549439 | AC24: 0 | AD24: 0 | AE24: 0 | AF24: 0 | AG24: 0.085 | AH24: 0 | AI24: 0 | AJ24: 0 | AK24: 0 | AL24: 0 | AM24: 0 | AN24: 0 | AO24: 0
A25: Year | B25: % difference | H25: 2000 | I25: 0 | J25: -0.279308497 | K25: 0 | L25: 0 | M25: 0 | N25: 0 | O25: 0.085 | P25: 0 | Q25: 0 | R25: 0 | S25: 0 | T25: 0 | U25: 0 | V25: 0 | W25: 0 | Y25: 2000 | Z25: 0 | AB25: -0.279308497 | AC25: 0 | AD25: 0 | AE25: 0 | AF25: 0 | AG25: 0.085 | AH25: 0 | AI25: 0 | AJ25: 0 | AK25: 0 | AL25: 0 | AM25: 0 | AN25: 0 | AO25: 0
A26: 1980 | B26: 0.01532507714 | H26: 2001 | I26: 0 | J26: -0.03746275365 | K26: 0 | L26: 0 | M26: 0 | N26: 0 | O26: 0.075 | P26: 0 | Q26: 0 | R26: 0 | S26: 0 | T26: 0 | U26: 0 | V26: 0 | W26: 0 | Y26: 2001 | Z26: 0 | AB26: -0.03746275365 | AC26: 0 | AD26: 0 | AE26: 0 | AF26: 0 | AG26: 0.075 | AH26: 0 | AI26: 0 | AJ26: 0 | AK26: 0 | AL26: 0 | AM26: 0 | AN26: 0 | AO26: 0
A27: 1981 | B27: -0.01250387428 | H27: 2002 | I27: 1 | J27: -0.1212417312 | K27: 60000 | L27: 0 | M27: 52725.49613 | N27: 0 | O27: 0.0425 | P27: 60000 | Q27: 0 | R27: 62550 | S27: 0 | T27: 0.5 | U27: 0.5 | V27: 0.4573868506 | W27: 0.5426131494 | Y27: 2002 | Z27: 1 | AA27: 0 | AB27: -0.1212417312 | AC27: 60000 | AD27: 0 | AE27: 52725.49613 | AF27: 0 | AG27: 0.0425 | AH27: 60000 | AI27: 0 | AJ27: 62550 | AK27: 0 | AL27: 0.5 | AM27: 0.5 | AN27: 0.4573868506 | AO27: 0.5426131494
A28: 1982 | B28: -0.1573756406 | H28: 2003 | I28: 2 | J28: 0.8337531817 | K28: 60000 | L28: 52725.49613 | M28: 206710.7372 | N28: 0 | O28: 0.04 | P28: 60000 | Q28: 62550 | R28: 127452 | S28: 0 | T28: 0.4791212769 | U28: 0.5208787231 | V28: 0.6185930213 | W28: 0.3814069787 | Y28: 2003 | Z28: 2 | AA28: 0 | AB28: 0.8337531817 | AC28: 60000 | AD28: 57637.74807 | AE28: 215718.5948 | AF28: 0 | AG28: 0.04 | AH28: 60000 | AI28: 57637.74807 | AJ28: 122343.258 | AK28: 0 | AL28: 0.5 | AM28: 0.5 | AN28: 0.6381039239 | AO28: 0.3618960761
A29: 1983 | B29: 0.1405635867 | H29: 2004 | I29: 3 | J29: 0.1613816048 | K29: 60000 | L29: 206710.7372 | M29: 309752.944 | N29: 0 | O29: 0.0525 | P29: 60000 | Q29: 127452 | R29: 197293.23 | S29: 0 | T29: 0.5872580803 | U29: 0.4127419197 | V29: 0.610896916 | W29: 0.389103084 | Y29: 2004 | Z29: 3 | AA29: 0 | AB29: 0.1613816048 | AC29: 60000 | AD29: 169030.9264 | AE29: 265992.3049 | AF29: 0 | AG29: 0.0525 | AH29: 60000 | AI29: 169030.9264 | AJ29: 241055.05 | AK29: 0 | AL29: 0.5 | AM29: 0.5 | AN29: 0.5245906567 | AO29: 0.4754093433
A30: 1984 | B30: 0.06019002436 | H30: 2005 | I30: 4 | J30: 0.7373036677 | K30: 60000 | L30: 309752.944 | M30: 642373.1457 | N30: 0 | O30: 0.06 | P30: 60000 | Q30: 197293.23 | R30: 272730.8238 | S30: 0 | T30: 0.5896741888 | U30: 0.4103258112 | V30: 0.7019673907 | W30: 0.2980326093 | Y30: 2005 | Z30: 4 | AA30: 0 | AB30: 0.7373036677 | AC30: 60000 | AD30: 253523.6774 | AE30: 544685.8347 | AF30: 0 | AG30: 0.06 | AH30: 60000 | AI30: 253523.6774 | AJ30: 332335.0981 | AK30: 0 | AL30: 0.5 | AM30: 0.5 | AN30: 0.6210636649 | AO30: 0.3789363351
A31: 1985 | B31: 0.1578694013 | H31: 2006 | I31: 5 | J31: 0.1588741135 | K31: 60000 | L31: 642373.1457 | M31: 813962.0566 | N31: 0 | O31: 0.0625 | P31: 60000 | Q31: 272730.8238 | R31: 353526.5003 | S31: 0 | T31: 0.6785532337 | U31: 0.3214467663 | V31: 0.6971906078 | W31: 0.3028093922 | Y31: 2006 | Z31: 5 | AA31: 0 | AB31: 0.1588741135 | AC31: 60000 | AD31: 438510.4664 | AE31: 577710.8748 | AF31: 0 | AG31: 0.0625 | AH31: 60000 | AI31: 438510.4664 | AJ31: 529667.3706 | AK31: 0 | AL31: 0.5 | AM31: 0.5 | AN31: 0.5216924544 | AO31: 0.4783075456
A32: 1986 | B32: 0.1698783818 | H32: 2007 | I32: 6 | J32: 0.1967778704 | K32: 60000 | L32: 813962.0566 | M32: 1045938.449 | N32: 0 | O32: 0.07 | P32: 60000 | Q32: 353526.5003 | R32: 442473.3553 | S32: 0 | T32: 0.678811514 | U32: 0.321188486 | V32: 0.7027211461 | W32: 0.2972788539 | Y32: 2007 | Z32: 6 | AA32: 0 | AB32: 0.1967778704 | AC32: 60000 | AD32: 553689.1227 | AE32: 734449.5614 | AF32: 0 | AG32: 0.07 | AH32: 60000 | AI32: 553689.1227 | AJ32: 656647.3613 | AK32: 0 | AL32: 0.5 | AM32: 0.5 | AN32: 0.5279643348 | AO32: 0.4720356652
A33: 1987 | B33: 0.1660542051 | H33: 2008 | I33: 7 | J33: -0.3794265041 | K33: 60000 | L33: 1045938.449 | M33: 686316.0895 | N33: 0 | O33: 0.08 | P33: 60000 | Q33: 442473.3553 | R33: 542671.2237 | S33: 0 | T33: 0.6875965757 | U33: 0.3124034243 | V33: 0.5584403371 | W33: 0.4415596629 | Y33: 2008 | Z33: 7 | AA33: 0 | AB33: -0.3794265041 | AC33: 60000 | AD33: 695548.4613 | AE33: 468873.35 | AF33: 0 | AG33: 0.08 | AH33: 60000 | AI33: 695548.4613 | AJ33: 815992.3382 | AK33: 0 | AL33: 0.5 | AM33: 0.5 | AN33: 0.3649201269 | AO33: 0.6350798731
A34: 1988 | B34: 0.1347835922 | H34: 2009 | I34: 8 | J34: 0.8053252305 | K34: 60000 | L34: 686316.0895 | M34: 1347343.266 | N34: 0 | O34: 0.09 | P34: 60000 | Q34: 542671.2237 | R34: 656911.6339 | S34: 0 | T34: 0.5532417408 | U34: 0.4467582592 | V34: 0.672241473 | W34: 0.327758527 | Y34: 2009 | Z34: 8 | AA34: 0 | AB34: 0.8053252305 | AC34: 60000 | AD34: 642432.8441 | AE34: 1268119.736 | AF34: 0 | AG34: 0.09 | AH34: 60000 | AI34: 642432.8441 | AJ34: 765651.8001 | AK34: 0 | AL34: 0.5 | AM34: 0.5 | AN34: 0.6235310671 | AO34: 0.3764689329
A35: 1989 | B35: 0.1418212367 | H35: 2010 | I35: 9 | J35: 0.1094311633 | K35: 60000 | L35: 1347343.266 | M35: 1561350.477 | N35: 0 | O35: 0.1 | P35: 60000 | Q35: 656911.6339 | R35: 788602.7973 | S35: 0 | T35: 0.662511484 | U35: 0.337488516 | V35: 0.6644176691 | W35: 0.3355823309 | Y35: 2010 | Z35: 9 | AA35: 0 | AB35: 0.1094311633 | AC35: 60000 | AD35: 1016885.768 | AE35: 1194730.631 | AF35: 0 | AG35: 0.1 | AH35: 60000 | AI35: 1016885.768 | AJ35: 1184574.345 | AK35: 0 | AL35: 0.5 | AM35: 0.5 | AN35: 0.5021342967 | AO35: 0.4978657033
A36: 1990 | B36: 0.1056790592 | H36: 2011 | I36: 10 | J36: -0.1049524299 | K36: 60000 | L36: 1561350.477 | M36: 1451185.805 | N36: 1451185.805 | O36: 0.11 | P36: 60000 | Q36: 788602.7973 | R36: 941949.105 | S36: 941949.105 | T36: 0.6564296151 | U36: 0.3435703849 | V36: 0.6063953181 | W36: 0.3936046819 | Y36: 2011 | Z36: 10 | AA36: 0 | AB36: -0.1049524299 | AC36: 60000 | AD36: 1189652.488 | AE36: 1118498.423 | AF36: 1118498.423 | AG36: 0.11 | AH36: 60000 | AI36: 1189652.488 | AJ36: 1387114.261 | AK36: 1387114.261 | AL36: 0.5 | AM36: 0.5 | AN36: 0.4463971745 | AO36: 0.5536028255
A37: 1991 | B37: 0.07234704507 | H37: Note 35% returns listed against 1980 actually is the return
A38: 1992 | B38: -0.004214533248 | H38: generated in the financial year 1980-1981
A39: 1993 | B39: -0.01787515831
A40: 1994 | B40: 0.05752607358
A41: 1995 | B41: 0.05160641478
A42: 1996 | B42: 0.02073195459
A43: 1997 | B43: -0.003054140566
A44: 1998 | B44: -0.03014217866
A45: 1999 | B45: 0.07463900865
A46: 2000 | B46: 0.02940696696
A47: 2001 | B47: 0.01363642808
A48: 2002 | B48: 0.0470001811

Sheet One-way Rebalancing SIP
A1: Enter data only in green cells | H1: No Rebalancing | Y1: Annual Rebalancing | AW1: None | AX1: 1
A2: Enter no of years (max 32) | D2: 10 | H2: Year of | I2: Year | J2: Sensex | K2: Annual | L2: invest. From | M2: Total Equity | O2: FD | P2: Annual | Q2: invest. From | R2: Total Debt | T2: Asset Allocation | Y2: Year of | Z2: Year | AB2: Sensex | AC2: Annual | AD2: invest. From | AE2: Total Equity | AG2: FD | AH2: Annual | AI2: invest. From | AJ2: Total Debt | AL2: Asset Allocation | AW2: 1
A3: Choose a starting year between | D3: 1980 | E3: and | F3: =2011-time1+1 -> 2002 | H3: return | J3: return | K3: investment | L3: Previous | M3: Corpus | O3: return | P3: investment | Q3: Previous | R3: Corpus | T3: Equity | U3: Debt | V3: Equity | W3: Debt | AB3: return | AC3: Investment | AD3: Previous | AE3: Corpus | AG3: return | AH3: investment | AI3: Previous | AJ3: Corpus | AL3: Equity | AM3: Debt | AN3: Equity | AO3: Debt | AW3: =IF(AW2<time1/2,AW2+1,"") -> 2
A4: Starting year | C4: 2002 | L4: year | Q4: year | T4: Prior investment | V4: After investment | Y4: return | AD4: year | AI4: year | AL4: Prior investment | AN4: After investment | AW4: 3
A5: monthly contribution in 1st year | D5: 25000 | H5: 1980 | I5: =IF(H4=start-1+time1,0,IF(I4<>0,I4+1,IF(H5=start,1,0))) -> 0 | J5: 0.3489927666 | K5: =IF(I5=0,0,IF(O4=start-1+time1,0,IF(K4<>0,K4*(1+inca),IF(H5=start,12*cont1*eqper,0)))) -> 0 | L5: =IF(I5=1,0,IF(I5=0,0,M4)) -> 0 | M5: =IF(I5=0,0,IF(I5=1,K5*(1+J5),(L5+K5)*(1+J5))) -> 0 | N5: =IF(I5=time1,M5,0) -> 0 | O5: 0.075 | P5: =IF(I5=0,0,IF(O4=start-1+time1,0,IF(K4<>0,K4*(1+inca),IF(H5=start,12*cont1*bondper,0)))) -> 0 | Q5: =IF(I5=1,0,IF(I5=0,0,R4)) -> 0 | R5: =IF(I5=0,0,IF(I5=1,P5*(1+O5),(Q5+P5)*(1+O5))) -> 0 | S5: =IF(I5=time1,R5,0) -> 0 | T5: =IF(I5=0,0,(K5+L5)/(K5+L5+P5+Q5)) -> 0 | U5: =IF(I5=0,0,(P5+Q5)/(K5+L5+P5+Q5)) -> 0 | V5: =IF(I5=0,0,M5/(M5+R5)) -> 0 | W5: =IF(I5=0,0,R5/(M5+R5)) -> 0 | Y5: 1980 | Z5: =IF(AG4=start-1+time1,0,IF(Z4<>0,Z4+1,IF(Y5=start,1,0))) -> 0 | AA5: =IF(Z5=0,"",IF(Z5=1,1,IF((AN4-eqper)>oneway,0,1))) ->  | AB5: 0.3489927666 | AC5: =IF(Z5=0,0,IF(AG4=start-1+time1,0,IF(AC4<>0,AC4*(1+inca),IF(Y5=start,12*cont1*eqper,0)))) -> 0 | AD5: =IF(Z5=1,0,IF(Z5=0,0,IF(AA5=0,AE4*(1-oneway),AE4))) -> 0 | AE5: =IF(Z5=0,0,(AC5+AD5)*(1+AB5)) -> 0 | AF5: =IF(Z5=time1,AE5,0) -> 0 | AG5: 0.075 | AH5: =IF(Z5=0,0,IF(AG4=start-1+time1,0,IF(AH4<>0,AH4*(1+inca),IF(Y5=start,12*cont1*bondper,0)))) -> 0 | AI5: =IF(Z5=1,0,IF(Z5=0,0,IF(AA5=0,AJ4+oneway*AE4,AJ4))) -> 0 | AJ5: =IF(Z5=0,0,(AH5+AI5)*(1+AG5)) -> 0 | AK5: =IF(Z5=time1,AJ5,0) -> 0 | AL5: =IF(Z5=0,0,(AC5+AD5)/(AC5+AD5+AH5+AI5)) -> 0 | AM5: =IF(Z5=0,0,(AH5+AI5)/(AC5+AD5+AH5+AI5)) -> 0 | AN5: =IF(Z5=0,0,AE5/(AE5+AJ5)) -> 0 | AO5: =IF(Z5=0,0,AJ5/(AE5+AJ5)) -> 0 | AW5: 4
A6: % increase or | B6: decrease each year | D6: 0 | H6: =H5+1 -> 1981 | I6: 0 | J6: 0.2552467712 | K6: 0 | L6: =IF(I6=1,0,IF(I6=0,0,M5)) -> 0 | M6: =IF(I6=0,0,IF(I6=1,K6*(1+J6),(L6+K6)*(1+J6))) -> 0 | N6: 0 | O6: 0.08 | P6: 0 | Q6: =IF(I6=1,0,IF(I6=0,0,R5)) -> 0 | R6: =IF(I6=0,0,IF(I6=1,P6*(1+O6),(Q6+P6)*(1+O6))) -> 0 | S6: 0 | T6: =IF(I6=0,0,(K6+L6)/(K6+L6+P6+Q6)) -> 0 | U6: =IF(I6=0,0,(P6+Q6)/(K6+L6+P6+Q6)) -> 0 | V6: 0 | W6: 0 | Y6: =Y5+1 -> 1981 | Z6: =IF(Y5=start-1+time1,0,IF(Z5<>0,Z5+1,IF(Y6=start,1,0))) -> 0 | AB6: 0.2552467712 | AC6: 0 | AD6: 0 | AE6: =IF(Z6=0,0,(AC6+AD6)*(1+AB6)) -> 0 | AF6: 0 | AG6: 0.08 | AH6: 0 | AI6: 0 | AJ6: =IF(Z6=0,0,(AH6+AI6)*(1+AG6)) -> 0 | AK6: 0 | AL6: =IF(Z6=0,0,(AC6+AD6)/(AC6+AD6+AH6+AI6)) -> 0 | AM6: =IF(Z6=0,0,(AH6+AI6)/(AC6+AD6+AH6+AI6)) -> 0 | AN6: =IF(Z6=0,0,AE6/(AE6+AJ6)) -> 0 | AO6: =IF(Z6=0,0,AJ6/(AE6+AJ6)) -> 0 | AW6: 5
H7: =H6+1 -> 1982 | I7: 0 | J7: -0.02847825088 | K7: 0 | L7: 0 | M7: 0 | N7: 0 | O7: 0.08 | P7: 0 | Q7: 0 | R7: 0 | S7: 0 | T7: 0 | U7: 0 | V7: 0 | W7: 0 | Y7: =Y6+1 -> 1982 | Z7: 0 | AB7: -0.02847825088 | AC7: 0 | AD7: 0 | AE7: 0 | AF7: 0 | AG7: 0.08 | AH7: 0 | AI7: 0 | AJ7: 0 | AK7: 0 | AL7: 0 | AM7: 0 | AN7: 0 | AO7: 0
A8: % in equities | B8: 0.5 | C8: % in FDs | D8: =100%-eqper -> 0.5 | H8: 1983 | I8: 0 | J8: 0.1598978772 | K8: 0 | L8: 0 | M8: 0 | N8: 0 | O8: 0.08 | P8: 0 | Q8: 0 | R8: 0 | S8: 0 | T8: 0 | U8: 0 | V8: 0 | W8: 0 | Y8: 1983 | Z8: 0 | AB8: 0.1598978772 | AC8: 0 | AD8: 0 | AE8: 0 | AF8: 0 | AG8: 0.08 | AH8: 0 | AI8: 0 | AJ8: 0 | AK8: 0 | AL8: 0 | AM8: 0 | AN8: 0 | AO8: 0
A9: Total must be 100% | H9: 1984 | I9: 0 | J9: 0.442383728 | K9: 0 | L9: 0 | M9: 0 | N9: =IF(I9=time1,M9,0) -> 0 | O9: 0.08 | P9: 0 | Q9: 0 | R9: 0 | S9: 0 | T9: 0 | U9: 0 | V9: 0 | W9: 0 | Y9: 1984 | Z9: 0 | AB9: 0.442383728 | AC9: 0 | AD9: 0 | AE9: 0 | AF9: =IF(Z9=time1,AE9,0) -> 0 | AG9: 0.08 | AH9: 0 | AI9: 0 | AJ9: 0 | AK9: 0 | AL9: 0 | AM9: 0 | AN9: 0 | AO9: 0
A10: Move from equity to debt only if equity allocation increases by (%) | E10: 0 | H10: 1985 | I10: 0 | J10: 0.6224212966 | K10: 0 | L10: 0 | M10: 0 | N10: =IF(I10=time1,M10,0) -> 0 | O10: 0.085 | P10: 0 | Q10: 0 | R10: 0 | S10: 0 | T10: 0 | U10: 0 | V10: 0 | W10: 0 | Y10: 1985 | Z10: 0 | AB10: 0.6224212966 | AC10: 0 | AD10: 0 | AE10: 0 | AF10: =IF(Z10=time1,AE10,0) -> 0 | AG10: 0.085 | AH10: 0 | AI10: 0 | AJ10: 0 | AK10: 0 | AL10: 0 | AM10: 0 | AN10: 0 | AO10: 0
A11: 0% is the same as no rebalancing | H11: 1986 | I11: 0 | J11: -0.1110414381 | K11: 0 | L11: 0 | M11: 0 | N11: 0 | O11: 0.085 | P11: 0 | Q11: 0 | R11: 0 | S11: 0 | T11: 0 | U11: 0 | V11: 0 | W11: 0 | Y11: 1986 | Z11: 0 | AB11: -0.1110414381 | AC11: 0 | AD11: 0 | AE11: 0 | AF11: =IF(Z11=time1,AE11,0) -> 0 | AG11: 0.085 | AH11: 0 | AI11: 0 | AJ11: 0 | AK11: 0 | AL11: 0 | AM11: 0 | AN11: 0 | AO11: 0
H12: 1987 | I12: 0 | J12: -0.2194333412 | K12: 0 | L12: 0 | M12: 0 | N12: 0 | O12: 0.09 | P12: 0 | Q12: 0 | R12: 0 | S12: 0 | T12: 0 | U12: 0 | V12: 0 | W12: 0 | Y12: 1987 | Z12: 0 | AB12: -0.2194333412 | AC12: 0 | AD12: 0 | AE12: 0 | AF12: 0 | AG12: 0.09 | AH12: 0 | AI12: 0 | AJ12: 0 | AK12: 0 | AL12: 0 | AM12: 0 | AN12: 0 | AO12: 0
B13: Equity corpus | C13: Debt Corpus | D13: Total corpus | E13: % Equity | F13: %Debt | H13: 1988 | I13: 0 | J13: 0.7912995456 | K13: 0 | L13: 0 | M13: 0 | N13: 0 | O13: 0.09 | P13: 0 | Q13: 0 | R13: 0 | S13: 0 | T13: 0 | U13: 0 | V13: 0 | W13: 0 | Y13: 1988 | Z13: 0 | AB13: 0.7912995456 | AC13: 0 | AD13: 0 | AE13: 0 | AF13: 0 | AG13: 0.09 | AH13: 0 | AI13: 0 | AJ13: 0 | AK13: 0 | AL13: 0 | AM13: 0 | AN13: 0 | AO13: 0
A14: without rebalancing | B14: =MAX(N2:N57) -> 3627964.512 | C14: =MAX(S2:S57) -> 2354872.762 | D14: =B14+C14 -> 5982837.275 | E14: =B14/D14 -> 0.6063953181 | F14: =C14/D14 -> 0.3936046819 | H14: 1989 | I14: 0 | J14: 0.09452073991 | K14: 0 | L14: 0 | M14: 0 | N14: 0 | O14: 0.09 | P14: 0 | Q14: 0 | R14: 0 | S14: 0 | T14: 0 | U14: 0 | V14: 0 | W14: 0 | Y14: 1989 | Z14: 0 | AB14: 0.09452073991 | AC14: 0 | AD14: 0 | AE14: 0 | AF14: 0 | AG14: 0.09 | AH14: 0 | AI14: 0 | AJ14: 0 | AK14: 0 | AL14: 0 | AM14: 0 | AN14: 0 | AO14: 0
A15: with rebalancing | B15: =MAX(AF4:AF58) -> 3627964.512 | C15: =MAX(AK4:AK58) -> 2354872.762 | D15: =B15+C15 -> 5982837.275 | E15: =B15/D15 -> 0.6063953181 | F15: =C15/D15 -> 0.3936046819 | H15: 1990 | I15: 0 | J15: 0.4953844184 | K15: 0 | L15: 0 | M15: 0 | N15: 0 | O15: 0.09 | P15: 0 | Q15: 0 | R15: 0 | S15: 0 | T15: 0 | U15: 0 | V15: 0 | W15: 0 | Y15: 1990 | Z15: 0 | AB15: 0.4953844184 | AC15: 0 | AD15: 0 | AE15: 0 | AF15: 0 | AG15: 0.09 | AH15: 0 | AI15: 0 | AJ15: 0 | AK15: 0 | AL15: 0 | AM15: 0 | AN15: 0 | AO15: 0
A16: The % equity and debt shown here represents the final asset allocation | H16: 1991 | I16: 0 | J16: 2.668758615 | K16: 0 | L16: 0 | M16: 0 | N16: 0 | O16: 0.12 | P16: 0 | Q16: 0 | R16: 0 | S16: 0 | T16: 0 | U16: 0 | V16: 0 | W16: 0 | Y16: 1991 | Z16: 0 | AB16: 2.668758615 | AC16: 0 | AD16: 0 | AE16: 0 | AF16: 0 | AG16: 0.12 | AH16: 0 | AI16: 0 | AJ16: 0 | AK16: 0 | AL16: 0 | AM16: 0 | AN16: 0 | AO16: 0
A17: % difference bet the two corpuses | C17: =(D15-D14)/D14 -> 0 | H17: 1992 | I17: 0 | J17: -0.467789965 | K17: 0 | L17: 0 | M17: 0 | N17: 0 | O17: 0.11 | P17: 0 | Q17: 0 | R17: 0 | S17: 0 | T17: 0 | U17: 0 | V17: 0 | W17: 0 | Y17: 1992 | Z17: 0 | AB17: -0.467789965 | AC17: 0 | AD17: 0 | AE17: 0 | AF17: 0 | AG17: 0.11 | AH17: 0 | AI17: 0 | AJ17: 0 | AK17: 0 | AL17: 0 | AM17: 0 | AN17: 0 | AO17: 0
A18: +ve means rebalanced portfolio is higher | H18: 1993 | I18: 0 | J18: 0.6570738253 | K18: 0 | L18: 0 | M18: 0 | N18: 0 | O18: 0.1 | P18: 0 | Q18: 0 | R18: 0 | S18: 0 | T18: 0 | U18: 0 | V18: 0 | W18: 0 | Y18: 1993 | Z18: 0 | AB18: 0.6570738253 | AC18: 0 | AD18: 0 | AE18: 0 | AF18: 0 | AG18: 0.1 | AH18: 0 | AI18: 0 | AJ18: 0 | AK18: 0 | AL18: 0 | AM18: 0 | AN18: 0 | AO18: 0
A19: Click on the macro to find out the % difference | H19: 1994 | I19: 0 | J19: -0.1370816012 | K19: 0 | L19: 0 | M19: 0 | N19: 0 | O19: 0.11 | P19: 0 | Q19: 0 | R19: 0 | S19: 0 | T19: 0 | U19: 0 | V19: 0 | W19: 0 | Y19: 1994 | Z19: 0 | AB19: -0.1370816012 | AC19: 0 | AD19: 0 | AE19: 0 | AF19: 0 | AG19: 0.11 | AH19: 0 | AI19: 0 | AJ19: 0 | AK19: 0 | AL19: 0 | AM19: 0 | AN19: 0 | AO19: 0
A20: between the two corpuses for all possible | H20: 1995 | I20: 0 | J20: 0.03239843482 | K20: 0 | L20: 0 | M20: 0 | N20: 0 | O20: 0.12 | P20: 0 | Q20: 0 | R20: 0 | S20: 0 | T20: 0 | U20: 0 | V20: 0 | W20: 0 | Y20: 1995 | Z20: 0 | AB20: 0.03239843482 | AC20: 0 | AD20: 0 | AE20: 0 | AF20: 0 | AG20: 0.12 | AH20: 0 | AI20: 0 | AJ20: 0 | AK20: 0 | AL20: 0 | AM20: 0 | AN20: 0 | AO20: 0
A21: investment durations between | H21: 1996 | I21: 0 | J21: -0.001699038499 | K21: 0 | L21: 0 | M21: 0 | N21: 0 | O21: 0.12 | P21: 0 | Q21: 0 | R21: 0 | S21: 0 | T21: 0 | U21: 0 | V21: 0 | W21: 0 | Y21: 1996 | Z21: 0 | AB21: -0.001699038499 | AC21: 0 | AD21: 0 | AE21: 0 | AF21: 0 | AG21: 0.12 | AH21: 0 | AI21: 0 | AJ21: 0 | AK21: 0 | AL21: 0 | AM21: 0 | AN21: 0 | AO21: 0
A22: =D3 -> 1980 | B22: and | C22: =F3 -> 2002 | H22: 1997 | I22: 0 | J22: 0.1582497493 | K22: 0 | L22: 0 | M22: 0 | N22: 0 | O22: 0.11 | P22: 0 | Q22: 0 | R22: 0 | S22: 0 | T22: 0 | U22: 0 | V22: 0 | W22: 0 | Y22: 1997 | Z22: 0 | AB22: 0.1582497493 | AC22: 0 | AD22: 0 | AE22: 0 | AF22: 0 | AG22: 0.11 | AH22: 0 | AI22: 0 | AJ22: 0 | AK22: 0 | AL22: 0 | AM22: 0 | AN22: 0 | AO22: 0
A23: Average % difference bet the two corpuses | D23: =AVERAGE(B26:B48) -> 0 | H23: 1998 | I23: 0 | J23: -0.03924988761 | K23: 0 | L23: 0 | M23: 0 | N23: 0 | O23: 0.105 | P23: 0 | Q23: 0 | R23: 0 | S23: 0 | T23: 0 | U23: 0 | V23: 0 | W23: 0 | Y23: 1998 | Z23: 0 | AB23: -0.03924988761 | AC23: 0 | AD23: 0 | AE23: 0 | AF23: 0 | AG23: 0.105 | AH23: 0 | AI23: 0 | AJ23: 0 | AK23: 0 | AL23: 0 | AM23: 0 | AN23: 0 | AO23: 0
H24: 1999 | I24: 0 | J24: 0.3372549439 | K24: 0 | L24: 0 | M24: 0 | N24: 0 | O24: 0.085 | P24: 0 | Q24: 0 | R24: 0 | S24: 0 | T24: 0 | U24: 0 | V24: 0 | W24: 0 | Y24: 1999 | Z24: 0 | AB24: 0.3372549439 | AC24: 0 | AD24: 0 | AE24: 0 | AF24: 0 | AG24: 0.085 | AH24: 0 | AI24: 0 | AJ24: 0 | AK24: 0 | AL24: 0 | AM24: 0 | AN24: 0 | AO24: 0
A25: Year | B25: % difference | H25: 2000 | I25: 0 | J25: -0.279308497 | K25: 0 | L25: 0 | M25: 0 | N25: 0 | O25: 0.085 | P25: 0 | Q25: 0 | R25: 0 | S25: 0 | T25: 0 | U25: 0 | V25: 0 | W25: 0 | Y25: 2000 | Z25: 0 | AB25: -0.279308497 | AC25: 0 | AD25: 0 | AE25: 0 | AF25: 0 | AG25: 0.085 | AH25: 0 | AI25: 0 | AJ25: 0 | AK25: 0 | AL25: 0 | AM25: 0 | AN25: 0 | AO25: 0
A26: 1980 | B26: 0 | H26: 2001 | I26: 0 | J26: -0.03746275365 | K26: 0 | L26: 0 | M26: 0 | N26: 0 | O26: 0.075 | P26: 0 | Q26: 0 | R26: 0 | S26: 0 | T26: 0 | U26: 0 | V26: 0 | W26: 0 | Y26: 2001 | Z26: 0 | AB26: -0.03746275365 | AC26: 0 | AD26: 0 | AE26: 0 | AF26: 0 | AG26: 0.075 | AH26: 0 | AI26: 0 | AJ26: 0 | AK26: 0 | AL26: 0 | AM26: 0 | AN26: 0 | AO26: 0
A27: 1981 | B27: 0 | H27: 2002 | I27: 1 | J27: -0.1212417312 | K27: 150000 | L27: 0 | M27: 131813.7403 | N27: 0 | O27: 0.0425 | P27: 150000 | Q27: 0 | R27: 156375 | S27: 0 | T27: 0.5 | U27: 0.5 | V27: 0.4573868506 | W27: 0.5426131494 | Y27: 2002 | Z27: 1 | AA27: 1 | AB27: -0.1212417312 | AC27: 150000 | AD27: 0 | AE27: 131813.7403 | AF27: 0 | AG27: 0.0425 | AH27: 150000 | AI27: 0 | AJ27: 156375 | AK27: 0 | AL27: 0.5 | AM27: 0.5 | AN27: 0.4573868506 | AO27: 0.5426131494
A28: 1982 | B28: 0 | H28: 2003 | I28: 2 | J28: 0.8337531817 | K28: 150000 | L28: 131813.7403 | M28: 516776.843 | N28: 0 | O28: 0.04 | P28: 150000 | Q28: 156375 | R28: 318630 | S28: 0 | T28: 0.4791212769 | U28: 0.5208787231 | V28: 0.6185930213 | W28: 0.3814069787 | Y28: 2003 | Z28: 2 | AA28: 1 | AB28: 0.8337531817 | AC28: 150000 | AD28: 131813.7403 | AE28: 516776.843 | AF28: 0 | AG28: 0.04 | AH28: 150000 | AI28: 156375 | AJ28: 318630 | AK28: 0 | AL28: 0.4791212769 | AM28: 0.5208787231 | AN28: 0.6185930213 | AO28: 0.3814069787
A29: 1983 | B29: 0 | H29: 2004 | I29: 3 | J29: 0.1613816048 | K29: 150000 | L29: 516776.843 | M29: 774382.3599 | N29: 0 | O29: 0.0525 | P29: 150000 | Q29: 318630 | R29: 493233.075 | S29: 0 | T29: 0.5872580803 | U29: 0.4127419197 | V29: 0.610896916 | W29: 0.389103084 | Y29: 2004 | Z29: 3 | AA29: 0 | AB29: 0.1613816048 | AC29: 150000 | AD29: 516776.843 | AE29: 774382.3599 | AF29: 0 | AG29: 0.0525 | AH29: 150000 | AI29: 318630 | AJ29: 493233.075 | AK29: 0 | AL29: 0.5872580803 | AM29: 0.4127419197 | AN29: 0.610896916 | AO29: 0.389103084
A30: 1984 | B30: 0 | H30: 2005 | I30: 4 | J30: 0.7373036677 | K30: 150000 | L30: 774382.3599 | M30: 1605932.864 | N30: 0 | O30: 0.06 | P30: 150000 | Q30: 493233.075 | R30: 681827.0595 | S30: 0 | T30: 0.5896741888 | U30: 0.4103258112 | V30: 0.7019673907 | W30: 0.2980326093 | Y30: 2005 | Z30: 4 | AA30: 0 | AB30: 0.7373036677 | AC30: 150000 | AD30: 774382.3599 | AE30: 1605932.864 | AF30: 0 | AG30: 0.06 | AH30: 150000 | AI30: 493233.075 | AJ30: 681827.0595 | AK30: 0 | AL30: 0.5896741888 | AM30: 0.4103258112 | AN30: 0.7019673907 | AO30: 0.2980326093
A31: 1985 | B31: 0 | H31: 2006 | I31: 5 | J31: 0.1588741135 | K31: 150000 | L31: 1605932.864 | M31: 2034905.141 | N31: 0 | O31: 0.0625 | P31: 150000 | Q31: 681827.0595 | R31: 883816.2507 | S31: 0 | T31: 0.6785532337 | U31: 0.3214467663 | V31: 0.6971906078 | W31: 0.3028093922 | Y31: 2006 | Z31: 5 | AA31: 0 | AB31: 0.1588741135 | AC31: 150000 | AD31: 1605932.864 | AE31: 2034905.141 | AF31: 0 | AG31: 0.0625 | AH31: 150000 | AI31: 681827.0595 | AJ31: 883816.2507 | AK31: 0 | AL31: 0.6785532337 | AM31: 0.3214467663 | AN31: 0.6971906078 | AO31: 0.3028093922
A32: 1986 | B32: 0 | H32: 2007 | I32: 6 | J32: 0.1967778704 | K32: 150000 | L32: 2034905.141 | M32: 2614846.122 | N32: 0 | O32: 0.07 | P32: 150000 | Q32: 883816.2507 | R32: 1106183.388 | S32: 0 | T32: 0.678811514 | U32: 0.321188486 | V32: 0.7027211461 | W32: 0.2972788539 | Y32: 2007 | Z32: 6 | AA32: 0 | AB32: 0.1967778704 | AC32: 150000 | AD32: 2034905.141 | AE32: 2614846.122 | AF32: 0 | AG32: 0.07 | AH32: 150000 | AI32: 883816.2507 | AJ32: 1106183.388 | AK32: 0 | AL32: 0.678811514 | AM32: 0.321188486 | AN32: 0.7027211461 | AO32: 0.2972788539
A33: 1987 | B33: 0 | H33: 2008 | I33: 7 | J33: -0.3794265041 | K33: 150000 | L33: 2614846.122 | M33: 1715790.224 | N33: 0 | O33: 0.08 | P33: 150000 | Q33: 1106183.388 | R33: 1356678.059 | S33: 0 | T33: 0.6875965757 | U33: 0.3124034243 | V33: 0.5584403371 | W33: 0.4415596629 | Y33: 2008 | Z33: 7 | AA33: 0 | AB33: -0.3794265041 | AC33: 150000 | AD33: 2614846.122 | AE33: 1715790.224 | AF33: 0 | AG33: 0.08 | AH33: 150000 | AI33: 1106183.388 | AJ33: 1356678.059 | AK33: 0 | AL33: 0.6875965757 | AM33: 0.3124034243 | AN33: 0.5584403371 | AO33: 0.4415596629
A34: 1988 | B34: 0 | H34: 2009 | I34: 8 | J34: 0.8053252305 | K34: 150000 | L34: 1715790.224 | M34: 3368358.166 | N34: 0 | O34: 0.09 | P34: 150000 | Q34: 1356678.059 | R34: 1642279.085 | S34: 0 | T34: 0.5532417408 | U34: 0.4467582592 | V34: 0.672241473 | W34: 0.327758527 | Y34: 2009 | Z34: 8 | AA34: 0 | AB34: 0.8053252305 | AC34: 150000 | AD34: 1715790.224 | AE34: 3368358.166 | AF34: 0 | AG34: 0.09 | AH34: 150000 | AI34: 1356678.059 | AJ34: 1642279.085 | AK34: 0 | AL34: 0.5532417408 | AM34: 0.4467582592 | AN34: 0.672241473 | AO34: 0.327758527
A35: 1989 | B35: 0 | H35: 2010 | I35: 9 | J35: 0.1094311633 | K35: 150000 | L35: 3368358.166 | M35: 3903376.193 | N35: 0 | O35: 0.1 | P35: 150000 | Q35: 1642279.085 | R35: 1971506.993 | S35: 0 | T35: 0.662511484 | U35: 0.337488516 | V35: 0.6644176691 | W35: 0.3355823309 | Y35: 2010 | Z35: 9 | AA35: 0 | AB35: 0.1094311633 | AC35: 150000 | AD35: 3368358.166 | AE35: 3903376.193 | AF35: 0 | AG35: 0.1 | AH35: 150000 | AI35: 1642279.085 | AJ35: 1971506.993 | AK35: 0 | AL35: 0.662511484 | AM35: 0.337488516 | AN35: 0.6644176691 | AO35: 0.3355823309
A36: 1990 | B36: 0 | H36: 2011 | I36: 10 | J36: -0.1049524299 | K36: 150000 | L36: 3903376.193 | M36: 3627964.512 | N36: 3627964.512 | O36: 0.11 | P36: 150000 | Q36: 1971506.993 | R36: 2354872.762 | S36: 2354872.762 | T36: 0.6564296151 | U36: 0.3435703849 | V36: 0.6063953181 | W36: 0.3936046819 | Y36: 2011 | Z36: 10 | AA36: 0 | AB36: -0.1049524299 | AC36: 150000 | AD36: 3903376.193 | AE36: 3627964.512 | AF36: 3627964.512 | AG36: 0.11 | AH36: 150000 | AI36: 1971506.993 | AJ36: 2354872.762 | AK36: 2354872.762 | AL36: 0.6564296151 | AM36: 0.3435703849 | AN36: 0.6063953181 | AO36: 0.3936046819
A37: 1991 | B37: 0 | H37: Note 35% returns listed against 1980 actually is the return
A38: 1992 | B38: 0 | H38: generated in the financial year 1980-1981
A39: 1993 | B39: 0
A40: 1994 | B40: 0
A41: 1995 | B41: 0
A42: 1996 | B42: 0
A43: 1997 | B43: 0
A44: 1998 | B44: 0
A45: 1999 | B45: 0
A46: 2000 | B46: 0
A47: 2001 | B47: 0
A48: 2002 | B48: 0

Sheet Threshold Rebalancing SIP
A1: Enter data only in green cells | H1: No Rebalancing | Y1: Annual Rebalancing | AW1: None | AX1: 1
A2: Enter no of years (max 32) | D2: 15 | H2: Year of | I2: Year | J2: Sensex | K2: Annual | L2: invest. From | M2: Total Equity | O2: FD | P2: Annual | Q2: invest. From | R2: Total Debt | T2: Asset Allocation | Y2: Year of | Z2: Year | AB2: Sensex | AC2: Annual | AD2: invest. From | AE2: Total Equity | AG2: FD | AH2: Annual | AI2: invest. From | AJ2: Total Debt | AL2: Asset Allocation | AW2: 1
A3: Choose a starting year between | D3: 1980 | E3: and | F3: =2011-time1+1 -> 1997 | H3: return | J3: return | K3: investment | L3: Previous | M3: Corpus | O3: return | P3: investment | Q3: Previous | R3: Corpus | T3: Equity | U3: Debt | V3: Equity | W3: Debt | AB3: return | AC3: Investment | AD3: Previous | AE3: Corpus | AG3: return | AH3: investment | AI3: Previous | AJ3: Corpus | AL3: Equity | AM3: Debt | AN3: Equity | AO3: Debt | AW3: =IF(AW2<time1/2,AW2+1,"") -> 2
A4: Starting year | C4: 1997 | L4: year | Q4: year | T4: Prior investment | V4: After investment | Y4: return | AD4: year | AI4: year | AL4: Prior investment | AN4: After investment | AW4: 3
A5: monthly contribution in 1st year | D5: 25000 | H5: 1980 | I5: =IF(H4=start-1+time1,0,IF(I4<>0,I4+1,IF(H5=start,1,0))) -> 0 | J5: 0.3489927666 | K5: =IF(I5=0,0,IF(O4=start-1+time1,0,IF(K4<>0,K4*(1+inca),IF(H5=start,12*cont1*eqper,0)))) -> 0 | L5: =IF(I5=1,0,IF(I5=0,0,M4)) -> 0 | M5: =IF(I5=0,0,IF(I5=1,K5*(1+J5),(L5+K5)*(1+J5))) -> 0 | N5: =IF(I5=time1,M5,0) -> 0 | O5: 0.075 | P5: =IF(I5=0,0,IF(O4=start-1+time1,0,IF(P4<>0,P4*(1+inca),IF(H5=start,12*cont1*bondper,0)))) -> 0 | Q5: =IF(I5=1,0,IF(I5=0,0,R4)) -> 0 | R5: =IF(I5=0,0,IF(I5=1,P5*(1+O5),(Q5+P5)*(1+O5))) -> 0 | S5: =IF(I5=time1,R5,0) -> 0 | T5: =IF(I5=0,0,(K5+L5)/(K5+L5+P5+Q5)) -> 0 | U5: =IF(I5=0,0,(P5+Q5)/(K5+L5+P5+Q5)) -> 0 | V5: =IF(I5=0,0,M5/(M5+R5)) -> 0 | W5: =IF(I5=0,0,R5/(M5+R5)) -> 0 | Y5: 1980 | Z5: =IF(AG4=start-1+time1,0,IF(Z4<>0,Z4+1,IF(Y5=start,1,0))) -> 0 | AA5: =IF(Z5=0,"",IF(Z5=1,1,IF(ABS(AN4-eqper)>thres,0,1))) ->  | AB5: 0.3489927666 | AC5: =IF(Z5=0,0,IF(AG4=start-1+time1,0,IF(AC4<>0,AC4*(1+inca),IF(Y5=start,12*cont1*eqper,0)))) -> 0 | AD5: =IF(Z5=1,0,IF(Z5=0,0,IF(AA5=0,eqper*(AE4+AJ4),AE4))) -> 0 | AE5: =IF(Z5=0,0,(AC5+AD5)*(1+AB5)) -> 0 | AF5: =IF(Z5=time1,AE5,0) -> 0 | AG5: 0.075 | AH5: =IF(Z5=0,0,IF(AG4=start-1+time1,0,IF(AH4<>0,AH4*(1+inca),IF(Y5=start,12*cont1*bondper,0)))) -> 0 | AI5: =IF(Z5=1,0,IF(Z5=0,0,IF(AA5=0,bondper*(AE4+AJ4),AJ4))) -> 0 | AJ5: =IF(Z5=0,0,(AH5+AI5)*(1+AG5)) -> 0 | AK5: =IF(Z5=time1,AJ5,0) -> 0 | AL5: =IF(Z5=0,0,(AC5+AD5)/(AC5+AD5+AH5+AI5)) -> 0 | AM5: =IF(Z5=0,0,(AH5+AI5)/(AC5+AD5+AH5+AI5)) -> 0 | AN5: =IF(Z5=0,0,AE5/(AE5+AJ5)) -> 0 | AO5: =IF(Z5=0,0,AJ5/(AE5+AJ5)) -> 0 | AW5: 4
A6: % increase or | B6: decrease each year | D6: 0.05 | H6: =H5+1 -> 1981 | I6: 0 | J6: 0.2552467712 | K6: 0 | L6: =IF(I6=1,0,IF(I6=0,0,M5)) -> 0 | M6: =IF(I6=0,0,IF(I6=1,K6*(1+J6),(L6+K6)*(1+J6))) -> 0 | N6: 0 | O6: 0.08 | P6: 0 | Q6: =IF(I6=1,0,IF(I6=0,0,R5)) -> 0 | R6: =IF(I6=0,0,IF(I6=1,P6*(1+O6),(Q6+P6)*(1+O6))) -> 0 | S6: 0 | T6: =IF(I6=0,0,(K6+L6)/(K6+L6+P6+Q6)) -> 0 | U6: =IF(I6=0,0,(P6+Q6)/(K6+L6+P6+Q6)) -> 0 | V6: 0 | W6: 0 | Y6: =Y5+1 -> 1981 | Z6: =IF(Y5=start-1+time1,0,IF(Z5<>0,Z5+1,IF(Y6=start,1,0))) -> 0 | AB6: 0.2552467712 | AC6: 0 | AD6: 0 | AE6: =IF(Z6=0,0,(AC6+AD6)*(1+AB6)) -> 0 | AF6: 0 | AG6: 0.08 | AH6: 0 | AI6: 0 | AJ6: =IF(Z6=0,0,(AH6+AI6)*(1+AG6)) -> 0 | AK6: 0 | AL6: =IF(Z6=0,0,(AC6+AD6)/(AC6+AD6+AH6+AI6)) -> 0 | AM6: =IF(Z6=0,0,(AH6+AI6)/(AC6+AD6+AH6+AI6)) -> 0 | AN6: =IF(Z6=0,0,AE6/(AE6+AJ6)) -> 0 | AO6: =IF(Z6=0,0,AJ6/(AE6+AJ6)) -> 0 | AW6: 5
H7: =H6+1 -> 1982 | I7: 0 | J7: -0.02847825088 | K7: 0 | L7: 0 | M7: 0 | N7: 0 | O7: 0.08 | P7: 0 | Q7: 0 | R7: 0 | S7: 0 | T7: 0 | U7: 0 | V7: 0 | W7: 0 | Y7: =Y6+1 -> 1982 | Z7: 0 | AB7: -0.02847825088 | AC7: 0 | AD7: 0 | AE7: 0 | AF7: 0 | AG7: 0.08 | AH7: 0 | AI7: 0 | AJ7: 0 | AK7: 0 | AL7: 0 | AM7: 0 | AN7: 0 | AO7: 0 | AW7: 6
A8: % in equities | B8: 0.5 | C8: % in FDs | D8: =100%-eqper -> 0.5 | H8: 1983 | I8: 0 | J8: 0.1598978772 | K8: 0 | L8: 0 | M8: 0 | N8: 0 | O8: 0.08 | P8: 0 | Q8: 0 | R8: 0 | S8: 0 | T8: 0 | U8: 0 | V8: 0 | W8: 0 | Y8: 1983 | Z8: 0 | AB8: 0.1598978772 | AC8: 0 | AD8: 0 | AE8: 0 | AF8: 0 | AG8: 0.08 | AH8: 0 | AI8: 0 | AJ8: 0 | AK8: 0 | AL8: 0 | AM8: 0 | AN8: 0 | AO8: 0 | AW8: 7
A9: Total must be 100% | H9: 1984 | I9: 0 | J9: 0.442383728 | K9: 0 | L9: 0 | M9: 0 | N9: =IF(I9=time1,M9,0) -> 0 | O9: 0.08 | P9: 0 | Q9: 0 | R9: 0 | S9: 0 | T9: 0 | U9: 0 | V9: 0 | W9: 0 | Y9: 1984 | Z9: 0 | AB9: 0.442383728 | AC9: 0 | AD9: 0 | AE9: 0 | AF9: =IF(Z9=time1,AE9,0) -> 0 | AG9: 0.08 | AH9: 0 | AI9: 0 | AJ9: 0 | AK9: 0 | AL9: 0 | AM9: 0 | AN9: 0 | AO9: 0 | AW9: 8
A10: Rebalance only if equity deviates by (%) | C10: 0.05 | D10: Typically 3-5% or so | H10: 1985 | I10: 0 | J10: 0.6224212966 | K10: 0 | L10: 0 | M10: 0 | N10: =IF(I10=time1,M10,0) -> 0 | O10: 0.085 | P10: 0 | Q10: 0 | R10: 0 | S10: 0 | T10: 0 | U10: 0 | V10: 0 | W10: 0 | Y10: 1985 | Z10: 0 | AB10: 0.6224212966 | AC10: 0 | AD10: 0 | AE10: 0 | AF10: =IF(Z10=time1,AE10,0) -> 0 | AG10: 0.085 | AH10: 0 | AI10: 0 | AJ10: 0 | AK10: 0 | AL10: 0 | AM10: 0 | AN10: 0 | AO10: 0
A11: 0% is the same as annual rebalancing | H11: 1986 | I11: 0 | J11: -0.1110414381 | K11: 0 | L11: 0 | M11: 0 | N11: 0 | O11: 0.085 | P11: 0 | Q11: 0 | R11: 0 | S11: 0 | T11: 0 | U11: 0 | V11: 0 | W11: 0 | Y11: 1986 | Z11: 0 | AB11: -0.1110414381 | AC11: 0 | AD11: 0 | AE11: 0 | AF11: =IF(Z11=time1,AE11,0) -> 0 | AG11: 0.085 | AH11: 0 | AI11: 0 | AJ11: 0 | AK11: 0 | AL11: 0 | AM11: 0 | AN11: 0 | AO11: 0
H12: 1987 | I12: 0 | J12: -0.2194333412 | K12: 0 | L12: 0 | M12: 0 | N12: 0 | O12: 0.09 | P12: 0 | Q12: 0 | R12: 0 | S12: 0 | T12: 0 | U12: 0 | V12: 0 | W12: 0 | Y12: 1987 | Z12: 0 | AB12: -0.2194333412 | AC12: 0 | AD12: 0 | AE12: 0 | AF12: 0 | AG12: 0.09 | AH12: 0 | AI12: 0 | AJ12: 0 | AK12: 0 | AL12: 0 | AM12: 0 | AN12: 0 | AO12: 0
B13: Equity corpus | C13: Debt Corpus | D13: Total corpus | E13: % Equity | F13: %Debt | H13: 1988 | I13: 0 | J13: 0.7912995456 | K13: 0 | L13: 0 | M13: 0 | N13: 0 | O13: 0.09 | P13: 0 | Q13: 0 | R13: 0 | S13: 0 | T13: 0 | U13: 0 | V13: 0 | W13: 0 | Y13: 1988 | Z13: 0 | AB13: 0.7912995456 | AC13: 0 | AD13: 0 | AE13: 0 | AF13: 0 | AG13: 0.09 | AH13: 0 | AI13: 0 | AJ13: 0 | AK13: 0 | AL13: 0 | AM13: 0 | AN13: 0 | AO13: 0
A14: without rebalancing | B14: =MAX(N2:N57) -> 9093562.262 | C14: =MAX(S2:S57) -> 5783470.322 | D14: =B14+C14 -> 14877032.58 | E14: =B14/D14 -> 0.6112483932 | F14: =C14/D14 -> 0.3887516068 | H14: 1989 | I14: 0 | J14: 0.09452073991 | K14: 0 | L14: 0 | M14: 0 | N14: 0 | O14: 0.09 | P14: 0 | Q14: 0 | R14: 0 | S14: 0 | T14: 0 | U14: 0 | V14: 0 | W14: 0 | Y14: 1989 | Z14: 0 | AB14: 0.09452073991 | AC14: 0 | AD14: 0 | AE14: 0 | AF14: 0 | AG14: 0.09 | AH14: 0 | AI14: 0 | AJ14: 0 | AK14: 0 | AL14: 0 | AM14: 0 | AN14: 0 | AO14: 0
A15: with rebalancing | B15: =MAX(AF4:AF58) -> 7117237.746 | C15: =MAX(AK4:AK58) -> 8754265.347 | D15: =B15+C15 -> 15871503.09 | E15: =B15/D15 -> 0.4484287156 | F15: =C15/D15 -> 0.5515712844 | H15: 1990 | I15: 0 | J15: 0.4953844184 | K15: 0 | L15: 0 | M15: 0 | N15: 0 | O15: 0.09 | P15: 0 | Q15: 0 | R15: 0 | S15: 0 | T15: 0 | U15: 0 | V15: 0 | W15: 0 | Y15: 1990 | Z15: 0 | AB15: 0.4953844184 | AC15: 0 | AD15: 0 | AE15: 0 | AF15: 0 | AG15: 0.09 | AH15: 0 | AI15: 0 | AJ15: 0 | AK15: 0 | AL15: 0 | AM15: 0 | AN15: 0 | AO15: 0
A16: The % equity and debt shown here represents the final asset allocation | H16: 1991 | I16: 0 | J16: 2.668758615 | K16: 0 | L16: 0 | M16: 0 | N16: 0 | O16: 0.12 | P16: 0 | Q16: 0 | R16: 0 | S16: 0 | T16: 0 | U16: 0 | V16: 0 | W16: 0 | Y16: 1991 | Z16: 0 | AB16: 2.668758615 | AC16: 0 | AD16: 0 | AE16: 0 | AF16: 0 | AG16: 0.12 | AH16: 0 | AI16: 0 | AJ16: 0 | AK16: 0 | AL16: 0 | AM16: 0 | AN16: 0 | AO16: 0
A17: % difference bet the two corpuses | C17: =(D15-D14)/D14 -> 0.06684602608 | H17: 1992 | I17: 0 | J17: -0.467789965 | K17: 0 | L17: 0 | M17: 0 | N17: 0 | O17: 0.11 | P17: 0 | Q17: 0 | R17: 0 | S17: 0 | T17: 0 | U17: 0 | V17: 0 | W17: 0 | Y17: 1992 | Z17: 0 | AB17: -0.467789965 | AC17: 0 | AD17: 0 | AE17: 0 | AF17: 0 | AG17: 0.11 | AH17: 0 | AI17: 0 | AJ17: 0 | AK17: 0 | AL17: 0 | AM17: 0 | AN17: 0 | AO17: 0
A18: +ve means rebalanced portfolio is higher | H18: 1993 | I18: 0 | J18: 0.6570738253 | K18: 0 | L18: 0 | M18: 0 | N18: 0 | O18: 0.1 | P18: 0 | Q18: 0 | R18: 0 | S18: 0 | T18: 0 | U18: 0 | V18: 0 | W18: 0 | Y18: 1993 | Z18: 0 | AB18: 0.6570738253 | AC18: 0 | AD18: 0 | AE18: 0 | AF18: 0 | AG18: 0.1 | AH18: 0 | AI18: 0 | AJ18: 0 | AK18: 0 | AL18: 0 | AM18: 0 | AN18: 0 | AO18: 0
A19: Click on the macro to find out the % difference | H19: 1994 | I19: 0 | J19: -0.1370816012 | K19: 0 | L19: 0 | M19: 0 | N19: 0 | O19: 0.11 | P19: 0 | Q19: 0 | R19: 0 | S19: 0 | T19: 0 | U19: 0 | V19: 0 | W19: 0 | Y19: 1994 | Z19: 0 | AB19: -0.1370816012 | AC19: 0 | AD19: 0 | AE19: 0 | AF19: 0 | AG19: 0.11 | AH19: 0 | AI19: 0 | AJ19: 0 | AK19: 0 | AL19: 0 | AM19: 0 | AN19: 0 | AO19: 0
A20: between the two corpuses for all possible | H20: 1995 | I20: 0 | J20: 0.03239843482 | K20: 0 | L20: 0 | M20: 0 | N20: 0 | O20: 0.12 | P20: 0 | Q20: 0 | R20: 0 | S20: 0 | T20: 0 | U20: 0 | V20: 0 | W20: 0 | Y20: 1995 | Z20: 0 | AB20: 0.03239843482 | AC20: 0 | AD20: 0 | AE20: 0 | AF20: 0 | AG20: 0.12 | AH20: 0 | AI20: 0 | AJ20: 0 | AK20: 0 | AL20: 0 | AM20: 0 | AN20: 0 | AO20: 0
A21: investment durations between | H21: 1996 | I21: 0 | J21: -0.001699038499 | K21: 0 | L21: 0 | M21: 0 | N21: 0 | O21: 0.12 | P21: 0 | Q21: 0 | R21: 0 | S21: 0 | T21: 0 | U21: 0 | V21: 0 | W21: 0 | Y21: 1996 | Z21: 0 | AB21: -0.001699038499 | AC21: 0 | AD21: 0 | AE21: 0 | AF21: 0 | AG21: 0.12 | AH21: 0 | AI21: 0 | AJ21: 0 | AK21: 0 | AL21: 0 | AM21: 0 | AN21: 0 | AO21: 0
A22: =D3 -> 1980 | B22: and | C22: =F3 -> 1997 | H22: 1997 | I22: 1 | J22: 0.1582497493 | K22: 150000 | L22: 0 | M22: 173737.4624 | N22: 0 | O22: 0.11 | P22: 150000 | Q22: 0 | R22: 166500 | S22: 0 | T22: 0.5 | U22: 0.5 | V22: 0.5106358987 | W22: 0.4893641013 | Y22: 1997 | Z22: 1 | AA22: 1 | AB22: 0.1582497493 | AC22: 150000 | AD22: 0 | AE22: 173737.4624 | AF22: 0 | AG22: 0.11 | AH22: 150000 | AI22: 0 | AJ22: 166500 | AK22: 0 | AL22: 0.5 | AM22: 0.5 | AN22: 0.5106358987 | AO22: 0.4893641013
A23: Average % difference bet the two corpuses | D23: =AVERAGE(B26:B48) -> 0.1230324615 | H23: 1998 | I23: 2 | J23: -0.03924988761 | K23: 157500 | L23: 173737.4624 | M23: 318236.4292 | N23: 0 | O23: 0.105 | P23: 157500 | Q23: 166500 | R23: 358020 | S23: 0 | T23: 0.5055227782 | U23: 0.4944772218 | V23: 0.4705854399 | W23: 0.5294145601 | Y23: 1998 | Z23: 2 | AA23: 1 | AB23: -0.03924988761 | AC23: 157500 | AD23: 173737.4624 | AE23: 318236.4292 | AF23: 0 | AG23: 0.105 | AH23: 157500 | AI23: 166500 | AJ23: 358020 | AK23: 0 | AL23: 0.5055227782 | AM23: 0.4944772218 | AN23: 0.4705854399 | AO23: 0.5294145601
H24: 1999 | I24: 3 | J24: 0.3372549439 | K24: 165375 | L24: 318236.4292 | M24: 646711.7747 | N24: 0 | O24: 0.085 | P24: 165375 | Q24: 358020 | R24: 567883.575 | S24: 0 | T24: 0.4802466153 | U24: 0.5197533847 | V24: 0.5324503958 | W24: 0.4675496042 | Y24: 1999 | Z24: 3 | AA24: 1 | AB24: 0.3372549439 | AC24: 165375 | AD24: 318236.4292 | AE24: 646711.7747 | AF24: 0 | AG24: 0.085 | AH24: 165375 | AI24: 358020 | AJ24: 567883.575 | AK24: 0 | AL24: 0.4802466153 | AM24: 0.5197533847 | AN24: 0.5324503958 | AO24: 0.4675496042
A25: Year | B25: % difference | H25: 2000 | I25: 4 | J25: -0.279308497 | K25: 173643.75 | L25: 646711.7747 | M25: 591223.256 | N25: 0 | O25: 0.085 | P25: 173643.75 | Q25: 567883.575 | R25: 804557.1476 | S25: 0 | T25: 0.5252349911 | U25: 0.4747650089 | V25: 0.4235789917 | W25: 0.5764210083 | Y25: 2000 | Z25: 4 | AA25: 1 | AB25: -0.279308497 | AC25: 173643.75 | AD25: 646711.7747 | AE25: 591223.256 | AF25: 0 | AG25: 0.085 | AH25: 173643.75 | AI25: 567883.575 | AJ25: 804557.1476 | AK25: 0 | AL25: 0.5252349911 | AM25: 0.4747650089 | AN25: 0.4235789917 | AO25: 0.5764210083
A26: 1980 | B26: 0.1003319251 | H26: 2001 | I26: 5 | J26: -0.03746275365 | K26: 182325.9375 | L26: 591223.256 | M26: 744569.9107 | N26: 0 | O26: 0.075 | P26: 182325.9375 | Q26: 804557.1476 | R26: 1060899.317 | S26: 0 | T26: 0.4394086628 | U26: 0.5605913372 | V26: 0.4123968991 | W26: 0.5876031009 | Y26: 2001 | Z26: 5 | AA26: 0 | AB26: -0.03746275365 | AC26: 182325.9375 | AD26: 697890.2018 | AE26: 847240.8189 | AF26: 0 | AG26: 0.075 | AH26: 182325.9375 | AI26: 697890.2018 | AJ26: 946232.3498 | AK26: 0 | AL26: 0.5 | AM26: 0.5 | AN26: 0.4724022827 | AO26: 0.5275977173
A27: 1981 | B27: 0.1415714187 | H27: 2002 | I27: 6 | J27: -0.1212417312 | K27: 191442.2344 | L27: 744569.9107 | M27: 822528.4122 | N27: 0 | O27: 0.0425 | P27: 191442.2344 | Q27: 1060899.317 | R27: 1305566.067 | S27: 0 | T27: 0.4277243422 | U27: 0.5722756578 | V27: 0.3865093492 | W27: 0.6134906508 | Y27: 2002 | Z27: 6 | AA27: 1 | AB27: -0.1212417312 | AC27: 191442.2344 | AD27: 847240.8189 | AE27: 912751.3218 | AF27: 0 | AG27: 0.0425 | AH27: 191442.2344 | AI27: 946232.3498 | AJ27: 1186025.754 | AK27: 0 | AL27: 0.4772575221 | AM27: 0.5227424779 | AN27: 0.4348967465 | AO27: 0.5651032535
A28: 1982 | B28: 0.1789934658 | H28: 2003 | I28: 7 | J28: 0.8337531817 | K28: 201014.3461 | L28: 822528.4122 | M28: 1876924.79 | N28: 0 | O28: 0.04 | P28: 201014.3461 | Q28: 1305566.067 | R28: 1566843.629 | S28: 0 | T28: 0.4045426602 | U28: 0.5954573398 | V28: 0.5450206173 | W28: 0.4549793827 | Y28: 2003 | Z28: 7 | AA28: 0 | AB28: 0.8337531817 | AC28: 201014.3461 | AD28: 1049388.538 | AE28: 2292930.267 | AF28: 0 | AG28: 0.04 | AH28: 201014.3461 | AI28: 1049388.538 | AJ28: 1300418.999 | AK28: 0 | AL28: 0.5 | AM28: 0.5 | AN28: 0.6381039239 | AO28: 0.3618960761
A29: 1983 | B29: 0.1631762754 | H29: 2004 | I29: 8 | J29: 0.1613816048 | K29: 211065.0634 | L29: 1876924.79 | M29: 2424953.006 | N29: 0 | O29: 0.0525 | P29: 211065.0634 | Q29: 1566843.629 | R29: 1871248.899 | S29: 0 | T29: 0.5401046686 | U29: 0.4598953314 | V29: 0.5644411179 | W29: 0.4355588821 | Y29: 2004 | Z29: 8 | AA29: 0 | AB29: 0.1613816048 | AC29: 211065.0634 | AD29: 1796674.633 | AE29: 2331751.951 | AF29: 0 | AG29: 0.0525 | AH29: 211065.0634 | AI29: 1796674.633 | AJ29: 2113146.031 | AK29: 0 | AL29: 0.5 | AM29: 0.5 | AN29: 0.5245906567 | AO29: 0.4754093433
A30: 1984 | B30: 0.197911321 | H30: 2005 | I30: 9 | J30: 0.7373036677 | K30: 221618.3166 | L30: 2424953.006 | M30: 4597898.066 | N30: 0 | O30: 0.06 | P30: 221618.3166 | Q30: 1871248.899 | R30: 2218439.249 | S30: 0 | T30: 0.5584145255 | U30: 0.4415854745 | V30: 0.6745408647 | W30: 0.3254591353 | Y30: 2005 | Z30: 9 | AA30: 1 | AB30: 0.7373036677 | AC30: 221618.3166 | AD30: 2331751.951 | AE30: 4435979.531 | AF30: 0 | AG30: 0.06 | AH30: 221618.3166 | AI30: 2113146.031 | AJ30: 2474850.208 | AK30: 0 | AL30: 0.5223608736 | AM30: 0.4776391264 | AN30: 0.6418881232 | AO30: 0.3581118768
A31: 1985 | B31: 0.1640235775 | H31: 2006 | I31: 10 | J31: 0.1588741135 | K31: 232699.2324 | L31: 4597898.066 | M31: 5598054.162 | N31: 0 | O31: 0.0625 | P31: 232699.2324 | Q31: 2218439.249 | R31: 2604334.636 | S31: 0 | T31: 0.6633854131 | U31: 0.3366145869 | V31: 0.6824907109 | W31: 0.3175092891 | Y31: 2006 | Z31: 10 | AA31: 0 | AB31: 0.1588741135 | AC31: 232699.2324 | AD31: 3455414.869 | AE31: 4274059.96 | AF31: 0 | AG31: 0.0625 | AH31: 232699.2324 | AI31: 3455414.869 | AJ31: 3918621.233 | AK31: 0 | AL31: 0.5 | AM31: 0.5 | AN31: 0.5216924544 | AO31: 0.4783075456
A32: 1986 | B32: 0.2147699185 | H32: 2007 | I32: 11 | J32: 0.1967778704 | K32: 244334.194 | L32: 5598054.162 | M32: 6992041.095 | N32: 0 | O32: 0.07 | P32: 244334.194 | Q32: 2604334.636 | R32: 3048075.648 | S32: 0 | T32: 0.6722298831 | U32: 0.3277701169 | V32: 0.696410338 | W32: 0.303589662 | Y32: 2007 | Z32: 11 | AA32: 1 | AB32: 0.1967778704 | AC32: 244334.194 | AD32: 4274059.96 | AE32: 5407514.133 | AF32: 0 | AG32: 0.07 | AH32: 244334.194 | AI32: 3918621.233 | AJ32: 4454362.307 | AK32: 0 | AL32: 0.5204713981 | AM32: 0.4795286019 | AN32: 0.5483250745 | AO32: 0.4516749255
A33: 1987 | B33: 0.1849856275 | H33: 2008 | I33: 12 | J33: -0.3794265041 | K33: 256550.9037 | L33: 6992041.095 | M33: 4498284.077 | N33: 0 | O33: 0.08 | P33: 256550.9037 | Q33: 3048075.648 | R33: 3568996.676 | S33: 0 | T33: 0.686860787 | U33: 0.313139213 | V33: 0.5575960742 | W33: 0.4424039258 | Y33: 2008 | Z33: 12 | AA33: 1 | AB33: -0.3794265041 | AC33: 256550.9037 | AD33: 5407514.133 | AE33: 3514968.641 | AF33: 0 | AG33: 0.08 | AH33: 256550.9037 | AI33: 4454362.307 | AJ33: 5087786.268 | AK33: 0 | AL33: 0.5459351241 | AM33: 0.4540648759 | AN33: 0.408586398 | AO33: 0.591413602
A34: 1988 | B34: 0.1514511336 | H34: 2009 | I34: 13 | J34: 0.8053252305 | K34: 269378.4489 | L34: 4498284.077 | M34: 8607181.449 | N34: 0 | O34: 0.09 | P34: 269378.4489 | Q34: 3568996.676 | R34: 4183828.886 | S34: 0 | T34: 0.5539904332 | U34: 0.4460095668 | V34: 0.6729086463 | W34: 0.3270913537 | Y34: 2009 | Z34: 13 | AA34: 0 | AB34: 0.8053252305 | AC34: 269378.4489 | AD34: 4301377.454 | AE34: 8251700.955 | AF34: 0 | AG34: 0.09 | AH34: 269378.4489 | AI34: 4301377.454 | AJ34: 4982123.935 | AK34: 0 | AL34: 0.5 | AM34: 0.5 | AN34: 0.6235310671 | AO34: 0.3764689329
A35: 1989 | B35: 0.1697138142 | H35: 2010 | I35: 14 | J35: 0.1094311633 | K35: 282847.3713 | L35: 8607181.449 | M35: 9862875.016 | N35: 0 | O35: 0.1 | P35: 282847.3713 | Q35: 4183828.886 | R35: 4913343.883 | S35: 0 | T35: 0.6655854695 | U35: 0.3344145305 | V35: 0.6674830065 | W35: 0.3325169935 | Y35: 2010 | Z35: 14 | AA35: 0 | AB35: 0.1094311633 | AC35: 282847.3713 | AD35: 6616912.445 | AE35: 7654808.56 | AF35: 0 | AG35: 0.1 | AH35: 282847.3713 | AI35: 6616912.445 | AJ35: 7589735.798 | AK35: 0 | AL35: 0.5 | AM35: 0.5 | AN35: 0.5021342967 | AO35: 0.4978657033
A36: 1990 | B36: 0.1337739545 | H36: 2011 | I36: 15 | J36: -0.1049524299 | K36: 296989.7399 | L36: 9862875.016 | M36: 9093562.262 | N36: 9093562.262 | O36: 0.11 | P36: 296989.7399 | Q36: 4913343.883 | R36: 5783470.322 | S36: 5783470.322 | T36: 0.6610106458 | U36: 0.3389893542 | V36: 0.6112483932 | W36: 0.3887516068 | Y36: 2011 | Z36: 15 | AA36: 1 | AB36: -0.1049524299 | AC36: 296989.7399 | AD36: 7654808.56 | AE36: 7117237.746 | AF36: 7117237.746 | AG36: 0.11 | AH36: 296989.7399 | AI36: 7589735.798 | AJ36: 8754265.347 | AK36: 8754265.347 | AL36: 0.5020542559 | AM36: 0.4979457441 | AN36: 0.4484287156 | AO36: 0.5515712844
A37: 1991 | B37: 0.09577734178 | H37: Note 35% returns listed against 1980 actually is the return
A38: 1992 | B38: 0.05116024976 | H38: generated in the financial year 1980-1981
A39: 1993 | B39: 0.02144959595
A40: 1994 | B40: 0.09033798747
A41: 1995 | B41: 0.04964660597
A42: 1996 | B42: 0.03866406927
A43: 1997 | B43: 0.06684602608

Sheet Annual Rebalancing Retirement
A1: Enter data only in green cells | H1: No Rebalancing | W1: Annual Rebalancing
A2: Enter no of years (max 32) | D2: 15 | H2: Year of | I2: Year | J2: Sensex | K2: Annual | L2: invest. From | M2: Total Equity | O2: FD | P2: Annual | Q2: invest. From | R2: Total Debt | T2: Asset Allocation | W2: Year of | X2: Year | Y2: Sensex | Z2: Annual | AA2: invest. From | AB2: Total Equity | AD2: FD | AE2: Annual | AF2: invest. From | AG2: Total Debt | AI2: Asset Allocation
A3: Choose a starting year between | D3: 1980 | E3: and | F3: =2011-time1+1 -> 1997 | H3: return | J3: return | L3: previous | O3: return | Q3: previous | T3: After investment | Y3: return | Z3: Investment | AA3: Previous | AB3: Corpus | AD3: return | AE3: investment | AF3: Previous | AG3: Corpus | AI3: Equity | AJ3: Debt
A4: Starting year | C4: 1997 | L4: year | Q4: year | T4: Equity | U4: Debt | AA4: year | AF4: year | AI4: After investment
A5: monthly contribution in 1st year | D5: 10000 | H5: 1980 | I5: =IF(O4=start-1+time1,0,IF(I4<>0,I4+1,IF(H5=start,1,0))) -> 0 | J5: 0.3489927666 | K5: =IF(O4=start-1+time1,0,IF(K4<>0,K4*(1+inca),IF(H5=start,cont1*eqper,0))) -> 0 | L5: =IF(I5=0,0,K5*12) -> 0 | M5: =IF(I5=0,0,(L5+M4)*(1+J5)) -> 0 | N5: =IF(I5=time1,M5,0) -> 0 | O5: 0.075 | P5: =IF(O4=start-1+time1,0,IF(P4<>0,P4*(1+inca),IF(H5=start,cont1*bondper,0))) -> 0 | Q5: =IF(I5=0,0,P5*12) -> 0 | R5: =IF(I5=0,0,(Q5+R4)*(1+O5)) -> 0 | S5: =IF(I5=time1,R5,0) -> 0 | T5: =IF(I5=0,0,M5/(M5+R5)) -> 0 | U5: =IF(I5=0,0,R5/(M5+R5)) -> 0 | W5: 1980 | X5: =IF(AD4=start-1+time1,0,IF(X4<>0,X4+1,IF(W5=start,1,0))) -> 0 | Y5: 0.3489927666 | Z5: =IF(AD4=start-1+time1,0,IF(Z4<>0,Z4*(1+inca),IF(W5=start,cont1*eqper,0))) -> 0 | AA5: =IF(X5=0,0,Z5*12) -> 0 | AB5: =IF(X5=0,0,(AA5+AB4)*(1+Y5)) -> 0 | AC5: =IF(X5=time1,AB5,0) -> 0 | AD5: 0.075 | AE5: =IF(AD4=start-1+time1,0,IF(AE4<>0,AE4*(1+inca),IF(W5=start,cont1*bondper,0))) -> 0 | AF5: =IF(X5=0,0,AE5*12) -> 0 | AG5: =IF(X5=0,0,(AF5+AG4)*(1+AD5)) -> 0 | AH5: =IF(X5=time1,AG5,0) -> 0 | AI5: =IF(X5=0,0,AB5/(AB5+AG5)) -> 0 | AJ5: =IF(X5=0,0,AG5/(AB5+AG5)) -> 0
A6: % increase or | B6: decrease each year | D6: 0 | H6: =H5+1 -> 1981 | I6: =IF(H5=start-1+time1,0,IF(I5<>0,I5+1,IF(H6=start,1,0))) -> 0 | J6: 0.2552467712 | K6: =IF(O5=start-1+time1,0,IF(K5<>0,K5*(1+inca),IF(H6=start,cont1*eqper,0))) -> 0 | L6: =IF(I6=0,0,K6*12) -> 0 | M6: =IF(I6=0,0,(L6+M5)*(1+J6)) -> 0 | N6: 0 | O6: 0.08 | P6: 0 | Q6: 0 | R6: =IF(I6=0,0,(Q6+R5)*(1+O6)) -> 0 | S6: 0 | T6: =IF(I6=0,0,M6/(M6+R6)) -> 0 | U6: =IF(I6=0,0,R6/(M6+R6)) -> 0 | W6: =W5+1 -> 1981 | X6: =IF(W5=start-1+time1,0,IF(X5<>0,X5+1,IF(W6=start,1,0))) -> 0 | Y6: 0.2552467712 | Z6: 0 | AA6: =IF(X6=0,0,Z6*12) -> 0 | AB6: =IF(X6=0,0,(AA6+eqper*(AB5+AG5))*(1+Y6)) -> 0 | AC6: 0 | AD6: 0.08 | AE6: 0 | AF6: 0 | AG6: =IF(X6=0,0,(AF6+bondper*(AG5+AB5))*(1+AD6)) -> 0 | AH6: 0 | AI6: =IF(X6=0,0,AB6/(AB6+AG6)) -> 0 | AJ6: =IF(X6=0,0,AG6/(AB6+AG6)) -> 0
A7: % in equities | B7: 0.5 | C7: % in FDs (debt) | D7: =100%-eqper -> 0.5 | H7: =H6+1 -> 1982 | I7: 0 | J7: -0.02847825088 | K7: 0 | L7: 0 | M7: 0 | N7: 0 | O7: 0.08 | P7: 0 | Q7: 0 | R7: 0 | S7: 0 | T7: 0 | U7: 0 | W7: =W6+1 -> 1982 | X7: 0 | Y7: -0.02847825088 | Z7: 0 | AA7: 0 | AB7: 0 | AC7: 0 | AD7: 0.08 | AE7: 0 | AF7: 0 | AG7: 0 | AH7: 0 | AI7: 0 | AJ7: 0
A8: Total must be 100% | H8: 1983 | I8: 0 | J8: 0.1598978772 | K8: 0 | L8: 0 | M8: 0 | N8: 0 | O8: 0.08 | P8: 0 | Q8: 0 | R8: 0 | S8: 0 | T8: 0 | U8: 0 | W8: 1983 | X8: 0 | Y8: 0.1598978772 | Z8: 0 | AA8: 0 | AB8: 0 | AC8: 0 | AD8: 0.08 | AE8: 0 | AF8: 0 | AG8: 0 | AH8: 0 | AI8: 0 | AJ8: 0
A9: Enter a rate of inflation during retirement | D9: 0.08 | H9: 1984 | I9: 0 | J9: 0.442383728 | K9: 0 | L9: 0 | M9: 0 | N9: =IF(I9=time1,M9,0) -> 0 | O9: 0.08 | P9: 0 | Q9: 0 | R9: 0 | S9: 0 | T9: 0 | U9: 0 | W9: 1984 | X9: 0 | Y9: 0.442383728 | Z9: 0 | AA9: 0 | AB9: 0 | AC9: =IF(X9=time1,AB9,0) -> 0 | AD9: 0.08 | AE9: 0 | AF9: 0 | AG9: 0 | AH9: 0 | AI9: 0 | AJ9: 0
A10: rate of interest you expect corpus to earn during retirement | D10: 0.08 | H10: 1985 | I10: 0 | J10: 0.6224212966 | K10: 0 | L10: 0 | M10: 0 | N10: =IF(I10=time1,M10,0) -> 0 | O10: 0.085 | P10: 0 | Q10: 0 | R10: 0 | S10: 0 | T10: 0 | U10: 0 | W10: 1985 | X10: 0 | Y10: 0.6224212966 | Z10: 0 | AA10: 0 | AB10: 0 | AC10: =IF(X10=time1,AB10,0) -> 0 | AD10: 0.085 | AE10: 0 | AF10: 0 | AG10: 0 | AH10: 0 | AI10: 0 | AJ10: 0
A11: Enter the pension amt which will cover monthly expenses | D11: 40000 | E11: (enter present expenses to try) | H11: 1986 | I11: 0 | J11: -0.1110414381 | K11: 0 | L11: 0 | M11: 0 | N11: 0 | O11: 0.085 | P11: 0 | Q11: 0 | R11: 0 | S11: 0 | T11: 0 | U11: 0 | W11: 1986 | X11: 0 | Y11: -0.1110414381 | Z11: 0 | AA11: 0 | AB11: 0 | AC11: =IF(X11=time1,AB11,0) -> 0 | AD11: 0.085 | AE11: 0 | AF11: 0 | AG11: 0 | AH11: 0 | AI11: 0 | AJ11: 0
H12: 1987 | I12: 0 | J12: -0.2194333412 | K12: 0 | L12: 0 | M12: 0 | N12: 0 | O12: 0.09 | P12: 0 | Q12: 0 | R12: 0 | S12: 0 | T12: 0 | U12: 0 | W12: 1987 | X12: 0 | Y12: -0.2194333412 | Z12: 0 | AA12: 0 | AB12: 0 | AC12: 0 | AD12: 0.09 | AE12: 0 | AF12: 0 | AG12: 0 | AH12: 0 | AI12: 0 | AJ12: 0
B13: Equity corpus | C13: Debt Corpus | D13: Total corpus | E13: % Equity | F13: %Debt | H13: 1988 | I13: 0 | J13: 0.7912995456 | K13: 0 | L13: 0 | M13: 0 | N13: 0 | O13: 0.09 | P13: 0 | Q13: 0 | R13: 0 | S13: 0 | T13: 0 | U13: 0 | W13: 1988 | X13: 0 | Y13: 0.7912995456 | Z13: 0 | AA13: 0 | AB13: 0 | AC13: 0 | AD13: 0.09 | AE13: 0 | AF13: 0 | AG13: 0 | AH13: 0 | AI13: 0 | AJ13: 0
A14: no rebalancing | B14: =MAX(N4:N57) -> 2807877.603 | C14: =MAX(S4:S57) -> 1707778.783 | D14: =B14+C14 -> 4515656.386 | E14: =B14/D14 -> 0.6218094033 | F14: =C14/D14 -> 0.3781905967 | H14: 1989 | I14: 0 | J14: 0.09452073991 | K14: 0 | L14: 0 | M14: 0 | N14: 0 | O14: 0.09 | P14: 0 | Q14: 0 | R14: 0 | S14: 0 | T14: 0 | U14: 0 | W14: 1989 | X14: 0 | Y14: 0.09452073991 | Z14: 0 | AA14: 0 | AB14: 0 | AC14: 0 | AD14: 0.09 | AE14: 0 | AF14: 0 | AG14: 0 | AH14: 0 | AI14: 0 | AJ14: 0
A15: annual rebalancing | B15: =MAX(AC4:AC60) -> 2200582.163 | C15: =MAX(AH4:AH60) -> 2729068.58 | D15: =B15+C15 -> 4929650.743 | E15: =B15/D15 -> 0.4463971745 | F15: =C15/D15 -> 0.5536028255 | H15: 1990 | I15: 0 | J15: 0.4953844184 | K15: 0 | L15: 0 | M15: 0 | N15: 0 | O15: 0.09 | P15: 0 | Q15: 0 | R15: 0 | S15: 0 | T15: 0 | U15: 0 | W15: 1990 | X15: 0 | Y15: 0.4953844184 | Z15: 0 | AA15: 0 | AB15: 0 | AC15: 0 | AD15: 0.09 | AE15: 0 | AF15: 0 | AG15: 0 | AH15: 0 | AI15: 0 | AJ15: 0
A16: The % equity and debt shown here represents the final asset allocation | H16: 1991 | I16: 0 | J16: 2.668758615 | K16: 0 | L16: 0 | M16: 0 | N16: 0 | O16: 0.12 | P16: 0 | Q16: 0 | R16: 0 | S16: 0 | T16: 0 | U16: 0 | W16: 1991 | X16: 0 | Y16: 2.668758615 | Z16: 0 | AA16: 0 | AB16: 0 | AC16: 0 | AD16: 0.12 | AE16: 0 | AF16: 0 | AG16: 0 | AH16: 0 | AI16: 0 | AJ16: 0
A17: % difference bet the two corpuses | C17: =(D15-D14)/D14 -> 0.09167977391 | H17: 1992 | I17: 0 | J17: -0.467789965 | K17: 0 | L17: 0 | M17: 0 | N17: 0 | O17: 0.11 | P17: 0 | Q17: 0 | R17: 0 | S17: 0 | T17: 0 | U17: 0 | W17: 1992 | X17: 0 | Y17: -0.467789965 | Z17: 0 | AA17: 0 | AB17: 0 | AC17: 0 | AD17: 0.11 | AE17: 0 | AF17: 0 | AG17: 0 | AH17: 0 | AI17: 0 | AJ17: 0
A18: +ve means rebalanced portfolio is higher | H18: 1993 | I18: 0 | J18: 0.6570738253 | K18: 0 | L18: 0 | M18: 0 | N18: 0 | O18: 0.1 | P18: 0 | Q18: 0 | R18: 0 | S18: 0 | T18: 0 | U18: 0 | W18: 1993 | X18: 0 | Y18: 0.6570738253 | Z18: 0 | AA18: 0 | AB18: 0 | AC18: 0 | AD18: 0.1 | AE18: 0 | AF18: 0 | AG18: 0 | AH18: 0 | AI18: 0 | AJ18: 0
H19: 1994 | I19: 0 | J19: -0.1370816012 | K19: 0 | L19: 0 | M19: 0 | N19: 0 | O19: 0.11 | P19: 0 | Q19: 0 | R19: 0 | S19: 0 | T19: 0 | U19: 0 | W19: 1994 | X19: 0 | Y19: -0.1370816012 | Z19: 0 | AA19: 0 | AB19: 0 | AC19: 0 | AD19: 0.11 | AE19: 0 | AF19: 0 | AG19: 0 | AH19: 0 | AI19: 0 | AJ19: 0
A20: no rebalancing | B20: =NPER((1+rate)/(1+inf)-1,-exp*12,corp1,,1) -> 9.407617471 | D20: No of years corpus will last | H20: 1995 | I20: 0 | J20: 0.03239843482 | K20: 0 | L20: 0 | M20: 0 | N20: 0 | O20: 0.12 | P20: 0 | Q20: 0 | R20: 0 | S20: 0 | T20: 0 | U20: 0 | W20: 1995 | X20: 0 | Y20: 0.03239843482 | Z20: 0 | AA20: 0 | AB20: 0 | AC20: 0 | AD20: 0.12 | AE20: 0 | AF20: 0 | AG20: 0 | AH20: 0 | AI20: 0 | AJ20: 0
A21: annual rebalancing | B21: =NPER((1+rate)/(1+inf)-1,-exp*12,corp2,,1) -> 10.27010571 | C21: Examples are availabe in the 'Sample Data and analysis sheet' | H21: 1996 | I21: 0 | J21: -0.001699038499 | K21: 0 | L21: 0 | M21: 0 | N21: 0 | O21: 0.12 | P21: 0 | Q21: 0 | R21: 0 | S21: 0 | T21: 0 | U21: 0 | W21: 1996 | X21: 0 | Y21: -0.001699038499 | Z21: 0 | AA21: 0 | AB21: 0 | AC21: 0 | AD21: 0.12 | AE21: 0 | AF21: 0 | AG21: 0 | AH21: 0 | AI21: 0 | AJ21: 0
A22: Here we assume we are saving for retirment and detemine the no of years | H22: 1997 | I22: 1 | J22: 0.1582497493 | K22: 5000 | L22: 60000 | M22: 69494.98496 | N22: 0 | O22: 0.11 | P22: 5000 | Q22: 60000 | R22: 66600 | S22: 0 | T22: 0.5106358987 | U22: 0.4893641013 | W22: 1997 | X22: 1 | Y22: 0.1582497493 | Z22: 5000 | AA22: 60000 | AB22: 69494.98496 | AC22: 0 | AD22: 0.11 | AE22: 5000 | AF22: 60000 | AG22: 66600 | AH22: 0 | AI22: 0.5106358987 | AJ22: 0.4893641013
A23: the corpus will last from both approaches | H23: 1998 | I23: 2 | J23: -0.03924988761 | K23: 5000 | L23: 60000 | M23: 124412.3214 | N23: 0 | O23: 0.105 | P23: 5000 | Q23: 60000 | R23: 139893 | S23: 0 | T23: 0.4707144023 | U23: 0.5292855977 | W23: 1998 | X23: 2 | Y23: -0.03924988761 | Z23: 5000 | AA23: 60000 | AB23: 123021.6428 | AC23: 0 | AD23: 0.105 | AE23: 5000 | AF23: 60000 | AG23: 141492.4792 | AH23: 0 | AI23: 0.4650853492 | AJ23: 0.5349146508
H24: 1999 | I24: 3 | J24: 0.3372549439 | K24: 5000 | L24: 60000 | M24: 246606.2884 | N24: 0 | O24: 0.085 | P24: 5000 | Q24: 60000 | R24: 216883.905 | S24: 0 | T24: 0.5320636595 | U24: 0.4679363405 | W24: 1999 | X24: 3 | Y24: 0.3372549439 | Z24: 5000 | AA24: 60000 | AB24: 257096.7053 | AC24: 0 | AD24: 0.085 | AE24: 5000 | AF24: 60000 | AG24: 208598.9112 | AH24: 0 | AI24: 0.5520702712 | AJ24: 0.4479297288
A25: Click on the macro to find out the % difference | H25: 2000 | I25: 4 | J25: -0.279308497 | K25: 5000 | L25: 60000 | M25: 220968.5468 | N25: 0 | O25: 0.085 | P25: 5000 | Q25: 60000 | R25: 300419.0369 | S25: 0 | T25: 0.4238086094 | U25: 0.5761913906 | W25: 2000 | X25: 4 | Y25: -0.279308497 | Z25: 5000 | AA25: 60000 | AB25: 211052.9271 | AC25: 0 | AD25: 0.085 | AE25: 5000 | AF25: 60000 | AG25: 317739.8719 | AH25: 0 | AI25: 0.3991221655 | AJ25: 0.6008778345
A26: between the two corpuses for all possible | H26: 2001 | I26: 5 | J26: -0.03746275365 | K26: 5000 | L26: 60000 | M26: 270442.6914 | N26: 0 | O26: 0.075 | P26: 5000 | Q26: 60000 | R26: 387450.4647 | S26: 0 | T26: 0.4110738786 | U26: 0.5889261214 | W26: 2001 | X26: 5 | Y26: -0.03746275365 | Z26: 5000 | AA26: 60000 | AB26: 312243.6171 | AC26: 0 | AD26: 0.075 | AE26: 5000 | AF26: 60000 | AG26: 348726.1295 | AH26: 0 | AI26: 0.4724022827 | AJ26: 0.5275977173
A27: investment durations between | H27: 2002 | I27: 6 | J27: -0.1212417312 | K27: 5000 | L27: 60000 | M27: 290379.2474 | N27: 0 | O27: 0.0425 | P27: 5000 | Q27: 60000 | R27: 466467.1094 | S27: 0 | T27: 0.3836700075 | U27: 0.6163299925 | W27: 2002 | X27: 6 | Y27: -0.1212417312 | Z27: 5000 | AA27: 60000 | AB27: 343141.8113 | AC27: 0 | AD27: 0.0425 | AE27: 5000 | AF27: 60000 | AG27: 407080.4804 | AH27: 0 | AI27: 0.4573868506 | AJ27: 0.5426131494
A28: =D3 -> 1980 | B28: and | C28: =F3 -> 1997 | H28: 2003 | I28: 7 | J28: 0.8337531817 | K28: 5000 | L28: 60000 | M28: 642509.0598 | N28: 0 | O28: 0.04 | P28: 5000 | Q28: 60000 | R28: 547525.7938 | S28: 0 | T28: 0.5399077664 | U28: 0.4600922336 | W28: 2003 | X28: 7 | Y28: 0.8337531817 | Z28: 5000 | AA28: 60000 | AB28: 797886.448 | AC28: 0 | AD28: 0.04 | AE28: 5000 | AF28: 60000 | AG28: 452515.5917 | AH28: 0 | AI28: 0.6381039239 | AJ28: 0.3618960761
H29: 2004 | I29: 8 | J29: 0.1613816048 | K29: 5000 | L29: 60000 | M29: 815881.0993 | N29: 0 | O29: 0.0525 | P29: 5000 | Q29: 60000 | R29: 639420.898 | S29: 0 | T29: 0.5606266609 | U29: 0.4393733391 | W29: 2004 | X29: 8 | Y29: 0.1613816048 | Z29: 5000 | AA29: 60000 | AB29: 795779.8601 | AC29: 0 | AD29: 0.0525 | AE29: 5000 | AF29: 60000 | AG29: 721174.0734 | AH29: 0 | AI29: 0.5245906567 | AJ29: 0.4754093433
A30: Average % difference bet. Corpuses | C30: =AVERAGE(B33:B64) -> 0.1305410898 | H30: 2005 | I30: 9 | J30: 0.7373036677 | K30: 5000 | L30: 60000 | M30: 1521671.446 | N30: 0 | O30: 0.06 | P30: 5000 | Q30: 60000 | R30: 741386.1519 | S30: 0 | T30: 0.6723962516 | U30: 0.3276037484 | W30: 2005 | X30: 9 | Y30: 0.7373036677 | Z30: 5000 | AA30: 60000 | AB30: 1421943.036 | AC30: 0 | AD30: 0.06 | AE30: 5000 | AF30: 60000 | AG30: 867585.5847 | AH30: 0 | AI30: 0.6210636649 | AJ30: 0.3789363351
A31: Average no of additional years the rebalanced corpus will last | D31: =AVERAGE(C33:C64) -> 1.517237697 | H31: 2006 | I31: 10 | J31: 0.1588741135 | K31: 5000 | L31: 60000 | M31: 1832958.095 | N31: 0 | O31: 0.0625 | P31: 5000 | Q31: 60000 | R31: 851472.7864 | S31: 0 | T31: 0.6828106873 | U31: 0.3171893127 | W31: 2006 | X31: 10 | Y31: 0.1588741135 | Z31: 5000 | AA31: 60000 | AB31: 1396170.172 | AC31: 0 | AD31: 0.0625 | AE31: 5000 | AF31: 60000 | AG31: 1280062.08 | AH31: 0 | AI31: 0.5216924544 | AJ31: 0.4783075456
A32: Year | B32: % difference | C32: Additional years | H32: 2007 | I32: 11 | J32: 0.1967778704 | K32: 5000 | L32: 60000 | M32: 2265450.358 | N32: 0 | O32: 0.07 | P32: 5000 | Q32: 60000 | R32: 975275.8814 | S32: 0 | T32: 0.6990563814 | U32: 0.3009436186 | W32: 2007 | X32: 11 | Y32: 0.1967778704 | Z32: 5000 | AA32: 60000 | AB32: 1673234.44 | AC32: 0 | AD32: 0.07 | AE32: 5000 | AF32: 60000 | AG32: 1495984.255 | AH32: 0 | AI32: 0.5279643348 | AJ32: 0.4720356652
A33: 1980 | B33: 0.07742175555 | C33: 1.601637606 | H33: 2008 | I33: 12 | J33: -0.3794265041 | K33: 5000 | L33: 60000 | M33: 1443112.858 | N33: 0 | O33: 0.08 | P33: 5000 | Q33: 60000 | R33: 1118097.952 | S33: 0 | T33: 0.563449464 | U33: 0.436550536 | W33: 2008 | X33: 12 | Y33: -0.3794265041 | Z33: 5000 | AA33: 60000 | AB33: 1020600.972 | AC33: 0 | AD33: 0.08 | AE33: 5000 | AF33: 60000 | AG33: 1776178.095 | AH33: 0 | AI33: 0.3649201269 | AJ33: 0.6350798731
A34: 1981 | B34: 0.1264915683 | C34: 2.30272713 | H34: 2009 | I34: 13 | J34: 0.8053252305 | K34: 5000 | L34: 60000 | M34: 2713607.567 | N34: 0 | O34: 0.09 | P34: 5000 | Q34: 60000 | R34: 1284126.768 | S34: 0 | T34: 0.6787863675 | U34: 0.3212136325 | W34: 2009 | X34: 13 | Y34: 0.8053252305 | Z34: 5000 | AA34: 60000 | AB34: 2632867.421 | AC34: 0 | AD34: 0.09 | AE34: 5000 | AF34: 60000 | AG34: 1589644.592 | AH34: 0 | AI34: 0.6235310671 | AJ34: 0.3764689329
A35: 1982 | B35: 0.1689828025 | C35: 2.704482469 | H35: 2010 | I35: 14 | J35: 0.1094311633 | K35: 5000 | L35: 60000 | M35: 3077126.67 | N35: 0 | O35: 0.1 | P35: 5000 | Q35: 60000 | R35: 1478539.444 | S35: 0 | T35: 0.6754504375 | U35: 0.3245495625 | W35: 2010 | X35: 14 | Y35: 0.1094311633 | Z35: 5000 | AA35: 60000 | AB35: 2408859.077 | AC35: 0 | AD35: 0.1 | AE35: 5000 | AF35: 60000 | AG35: 2388381.607 | AH35: 0 | AI35: 0.5021342967 | AJ35: 0.4978657033
A36: 1983 | B36: 0.1581462313 | C36: 2.501572464 | H36: 2011 | I36: 15 | J36: -0.1049524299 | K36: 5000 | L36: 60000 | M36: 2807877.603 | N36: 2807877.603 | O36: 0.11 | P36: 5000 | Q36: 60000 | R36: 1707778.783 | S36: 1707778.783 | T36: 0.6218094033 | U36: 0.3781905967 | W36: 2011 | X36: 15 | Y36: -0.1049524299 | Z36: 5000 | AA36: 60000 | AB36: 2200582.163 | AC36: 2200582.163 | AD36: 0.11 | AE36: 5000 | AF36: 60000 | AG36: 2729068.58 | AH36: 2729068.58 | AI36: 0.4463971745 | AJ36: 0.5536028255
A37: 1984 | B37: 0.1983617359 | C37: 2.644451873 | H37: Note 35% returns listed against 1980 actually is the return
A38: 1985 | B38: 0.1677435029 | C38: 2.325158057 | H38: generated in the financial year 1980-1981
A39: 1986 | B39: 0.2335679104 | C39: 2.340116508
A40: 1987 | B40: 0.209125172 | C40: 1.898876035
A41: 1988 | B41: 0.1732216229 | C41: 1.324372858
A42: 1989 | B42: 0.1864551126 | C42: 1.64326786
A43: 1990 | B43: 0.1491836802 | C43: 1.260086397
A44: 1991 | B44: 0.09785367659 | C44: 0.9964408875
A45: 1992 | B45: 0.04874316574 | C45: 0.4803346827
A46: 1993 | B46: 0.0148188527 | C46: 0.1588692177
A47: 1994 | B47: 0.1112518749 | C47: 0.8316137544
A48: 1995 | B48: 0.07458341771 | C48: 0.7754453091
A49: 1996 | B49: 0.06210776047 | C49: 0.6583371893
A50: 1997 | B50: 0.09167977391 | C50: 0.8624882428

Sheet Sample Data and analysis
A1: SIP amt | B1: 10000 | D1: Lumpsum investment of 100000 | G1: SIP amt | H1: 10000 | I1: inflation at 8%
A2: duration 10 years | D2: duration 10 years | G2: duration 20 years | I2: rate of inflation at 8%
A3: equity | B3: 0.5 | D3: equity | E3: 0.5 | G3: equity | H3: 0.5 | I3: pension is 40000
A4: debt | B4: 0.5 | D4: debt | E4: 0.5 | G4: debt | H4: 0.5
A5: start year | B5: % diff bet the corpuses | D5: start year | E5: % diff bet the corpuses | G5: start year | H5: % diff bet the corpuses | I5: no of years rebalanced corpus will last longer
A6: 1980 | B6: 0.015 | D6: 1980 | E6: -0.03 | G6: 1980 | H6: 0.11 | I6: 4
A7: =A6+1 -> 1981 | B7: -0.013 | D7: =D6+1 -> 1981 | E7: -0.04 | G7: =G6+1 -> 1981 | H7: 0.257 | I7: 6
A8: 1982 | B8: -0.157 | D8: 1982 | E8: -0.2 | G8: 1982 | H8: 0.277 | I8: 6
A9: 1983 | B9: 0.141 | D9: 1983 | E9: 0.07 | G9: 1983 | H9: 0.287 | I9: 5
A10: 1984 | B10: 0.06 | D10: 1984 | E10: -0.03 | G10: 1984 | H10: 0.25 | I10: 5
A11: 1985 | B11: 0.158 | D11: 1985 | E11: 0.16 | G11: 1985 | H11: 0.233 | I11: 5
A12: 1986 | B12: 0.17 | D12: 1986 | E12: 0.28 | G12: 1986 | H12: 0.14 | I12: 4
A13: 1987 | B13: 0.166 | D13: 1987 | E13: 0.25 | G13: 1987 | H13: 0.1 | I13: 3
A14: 1988 | B14: 0.135 | D14: 1988 | E14: 0.12 | G14: 1988 | H14: 0.06 | I14: 2
A15: 1989 | B15: 0.142 | D15: 1989 | E15: 0.26 | G15: 1989 | H15: 0.23 | I15: 4
A16: 1990 | B16: 0.106 | D16: 1990 | E16: 0.22 | G16: 1990 | H16: 0.16 | I16: 3
A17: 1991 | B17: 0.072 | D17: 1991 | E17: 0.34 | G17: 1991 | H17: 0.14 | I17: 3
A18: 1992 | B18: -0.004 | D18: 1992 | E18: -0.04 | G18: 1992 | H18: 0.14 | I18: 3
A19: 1993 | B19: -0.018 | D19: 1993 | E19: 0.02
A20: 1994 | B20: 0.058 | D20: 1994 | E20: 0.06 | G20: Average | H20: =AVERAGE(H6:H18) -> 0.1833846154 | I20: =AVERAGE(I6:I18) -> 4.076923077
A21: 1995 | B21: 0.052 | D21: 1995 | E21: 0.08 | G21: Std Dev | H21: =STDEV(H6:H18) -> 0.07513713958 | I21: =STDEV(I6:I18) -> 1.255755978
A22: 1996 | B22: 0.021 | D22: 1996 | E22: 0.08
A23: 1997 | B23: -0.003 | D23: 1997 | E23: 0.05 | G23: longer the duration higher is the benefit of rebalancing: 18% avg for 20 years compared to 5% for 10 years (more data though)
A24: 1998 | B24: -0.03 | D24: 1998 | E24: 0.04 | G24: Although large % difference variations does not lead to a big differnece
A25: 1999 | B25: 0.075 | D25: 1999 | E25: 0.14 | G25: in the no of extra years rebalancing adds to the folio
A26: 2000 | B26: 0.029 | D26: 2000 | E26: 0.13 | G26: an average of 4 extra years is still significant
A27: 2001 | B27: 0.014 | D27: 2001 | E27: 0.02 | G27: I would think a % difference of less 5% should not make much
A28: 2002 | B28: 0.047 | D28: 2002 | E28: 0.05 | G28: of a difference to your financial goals
A29: +ve % means rebalanced portfolio is higher | G29: However we are using historical data and you will know if
A30: Average | B30: =AVERAGE(B6:B28) -> 0.05373913043 | D30: Average | E30: =AVERAGE(E6:E28) -> 0.08826086957 | G30: rebalancing has a made a difference only if you do it
A31: Std Dev | B31: =STDEV(B6:B28) -> 0.07832346531 | D31: Std Dev | E31: =STDEV(E6:E28) -> 0.1249600727 | G31: It certainly can't hurt and is most likely to benefit you
A33: As expected benefits of rebalancing are higher for lumpsum investments. On an average the rebalanced portfolio
A34: is 9% higher than the folio with no rebalancing. For SIP invesments it is 5% higher.
A35: The standard deviation for lumpsum investment is 12% which means the spead in individuals nos is higher
A37: A 5% higher corpus due to rebalancing a portfolio with SIP instruments is good
A38: But is it significant? This is tougher to answer.
A39: If during the process of goal planning you had taken precautions to
A40: underestimate interest rates and overestimate inflation
A41: your extimated corpus is likely to be lower than the corpus obtained
A42: with no rebalancing. If so you don’t care about rebalancing
A43: There is no way to know unless you rebalance so might as well give it a shot. It can’t hurt!
